Workbook

Sheet محضر التربية والتسيير
A1: الجمهورية الجزائرية الديمقراطية الشعبية
A2: وزارة التربية الوطنية
B3: مديرية التربية لولايةالشلف
B4: متوسطة شافع العربي الكريمية
A5: مستخرج محضر مجلس التوجيه و التسيير
B7: وفي يوم | C7: 2018-05-26 | F7: عام | G7: 2018 | H7: وعلى الساعة : | I7: ='[1]معلومات عن المتعهدين'!H22 -> 11
B8: اجتمع أعضاء مجلس التوجيه والتسيير برئاسة السيد: | H8: باعتباره مدير أمر بالصرف ، لمناقشة ميزانية 2018
B11: الأعضاء الحاضرون:
B12: اللقب و الاســـــــم | D12: الوظيفة | H12: الحضور والغياب | I12: ملاحظات
D13: مدير(امر بالصرف)
D14: ناظر
D15: مقتصد رئيسي (مكلف.بالتسيير)
D16: مستشار التربية
D17: استاد
D18: اداري
D19: تلميدة
B27: جــــــدول الأعمــــــــال :
A28: - | B28: مناقشة ميزانية 2018
A29: -
B30: المــــــداولا ت
B31: بعد إلقاء الكلمة الترحيبية من طرف السيد مدير المؤسسة و تذكيره بموضوع الجلسة
B32: تطرق المسير المالي الى شرح بنود الميزانية الجديدة مع توضيح الإختلافات مقارنة مع الميزانية القديمة
B33: وشرح عملية توزيع المبالغ المالية حسب ضرورة تسيير المؤسسة واعطاء الأولوية لتمدرس التلاميد وكدا تحسين ضروف
B34: تمدرسهم وتم فتح مجال المناقشة بين اعضاء المجلس وفي الأخير تمت المصادقة على ميزانية 2018
D35: ورفعت الجلسة في نفس التاريخ
H41: المدير

Sheet معطيات
C3: مديرية التربية : | D3: الشلف | H3: رقم الهاتف : | K3: 027708500 | P3: الايرادات
C5: إسم المؤسســــة : | D5: متوسطة شا فع العربي الكريمية | H5: الدائـــــــــــرة: | K5: الكريمية | P5: النفقات
C7: العنــــــــــوان : | D7: شارع الحرية الكرمية | H7: البلديـــــــــة: | K7: الكريمية | P7: للطباعة
C9: الرقم الميكانوغرافي: | D9: 02413 | H9: السنة المالية : | K9: 2018 | P9: التقرير
C11: رقم حساب الخزينة: | D11: 556/59 | H11: تاريخ الإنجاز: | K11: 2018-02-26
A15: - | C15: القـــــــJـــــانون رقم : | D15: 11-17 | E15: المؤرخ في : | F15: 2017-12-27 | H15: المتضمن قانون المالية لسنة : | L15: =K9 -> 2018
A17: - | C17: المرسوم التنفيذي رقم : | D17: 18-22 | E17: المؤرخ في : | F17: 2018-01-22 | H17: المتضمن توزيع الإعتمادات المخصصة للسيدة وزيرة التربية الوطنية
C21: تعداد التلاميذ في البطاقة الوصفية | M21: 1 | P21: الخلاصة
C23: داخلي: | D23: 0 | E23: نصف داخلي: | F23: 693 | H23: خارجي : | I23: 10 | K23: رياضة ودراسة : | L23: 0 | P23: توضيح
C25: منهم ممنوح : | D25: 2 | E25: منهم ممنوح: | F25: 693 | H25: المجموع العام : | I25: =D23+F23+I23 -> 703 | P25: المتابعة | T25: =T31*T33 -> 0
C29: سعر الوجبة للتلميذ الداخلي | H29: =#REF!*2 ->  | N29: =D23*H29 -> 
C31: معطيات متغـــــــــــــــــيرة | P31: ميزانية معدلـة
C33: مبلغ المنحة للتلميذ الواحد نصف داخلي | H33: 648
C35: مساهمة الدولة للتلميذ الواحد نصف داخلي | H35: 1152
C37: مساهمة العائلات للتلميذ الواحد نصف داخلي | H37: 1800
C39: مبلغ إعانة الدولة للتغذية للتلميذ الواحد نصف داخلي | H39: 10200 | N39: =H41*(D23+F23+I23) -> 7030
C41: مبلغ حقوق التسجيل - للتلميذ الواحد - | H41: 10
C45: سعر الوجبة للتلميذ الداخلي | H45: =#REF!*2 ->  | N45: =D39*H45 -> 
C47: المبالغ المسموح باستعمالها في الاطعام وفق الحقوق المثبتة والتحصيلات الفعلية
C49: إعانة التسيير للتغذية | H49: =J49/H39 -> 0 | J49: =IF(S53>الايرادات!J11,الايرادات!J11,معطيات!S53) -> 0
C51: المنح الوطنية | H51: =J51/H33 -> 704 | J51: 456192
C53: مساهمة الدولة للتلاميذ الممنوحين | H53: =J53/H35 -> 693 | J53: 798336
C55: مساهمة العائلات | H55: =J55/H37 -> 0 | J55: 0
B58: تعدل الميزانية في الحالات التالية
A60: -1 | B60: حدوث تغير في تعداد النظامين الداخلي ونصف الداخلي بالزيادة أو بالنقصان في الفصل الرابع من السنة المالية
A62: -2 | B62: الإستفادة من إعانات إضافية أو إستثنائية
A64: -3 | B64: ايرادات واردة من الجماعات المحلية والهيئات والمؤسسات العمومية
A66: -4 | B66: بيع الكتاب المدرسي والوثائق الشبه مدرسية
T67: مساهمة الدولة | U67: مساهمة العائلات
A68: -5 | B68: ايرادات خاصة بمختلف العمليات التكوينية
T69: مساهمة الدولة | U69: مساهمة العائلات
A70: -6 | B70: إدراج فائض الايرادات
T71: مساهمة الدولة | U71: مساهمة العائلات
B72: النقل أو التحويل من بـــــــــــــــاب إلى بـــــــــــــــاب
T73: مساهمة الدولة | U73: مساهمة العائلات
B74: يقتضي الموافقة المسبقة من مديرية التربية بنفس الإجراءات المتبعة أثناء الإعداد والمصادقة على الميزانية الأولية
T75: مساهمة الدولة | U75: مساهمة العائلات
B76: النقل أو التحويل من مـــــــــــــادة إلى مـــــــــــــادة
T77: مساهمة الدولة | U77: مساهمة العائلات
B78: يتم باقتراح من الآمر بالصرف والموافقة والتنفيذ من طرف المقتصد أو المكلف بمهامه بصفته عون محاسب معتمد
T79: مساهمة الدولة | U79: مساهمة العائلات
R115: حقوق التسجيل
R116: مجموع التلاميذ | T116: =I25*H41 -> 7030
R119: الميزانية الأولية | V119: الميزانية المعدلة
R120: المنحــــــــــــــــة | V120: المنحــــــــــــــــة
R121: داخلي | T121: نصف داخلي
R122: =D25*H33*2 -> 2592 | T122: =F25*H33 -> 449064 | V122: =J51 -> 456192
R123: =T122+R122 -> 451656
R124: مساهمة الدولة للتلايذ الممنوحين | V124: مساهمة الدولة للتلايذ الممنوحين
R125: داخلي | T125: نصف داخلي | V125: داخلي
R126: =D25*H35*2 -> 4608 | T126: =F25*H35 -> 798336 | V126: =J53 -> 798336
R127: =T126+R126 -> 802944
R128: اعانة الدولة للتغذية | V128: اعانة الدولة للتغذية
R129: داخلي | T129: نصف داخلي | V129: داخلي
R130: =D23*H39*2 -> 0 | T130: =F23*H39 -> 7068600 | V130: =J49 -> 0
R131: =T130+R130 -> 7068600
R132: مساهمة العائلات | V132: مساهمة العائلات
R133: داخلي | T133: نصف داخلي | V133: داخلي
R134: =(D23-D25)*H37*2 -> -7200 | T134: =(F23-F25)*H37 -> 0 | V134: =J55 -> 0
R135: =T134+R134 -> -7200
R136: القرض المفتوح | V136: القرض المفتوح
R137: داخلي: | T137: =R134+R130+R126+R122 -> 0 | V137: =V134+V130+V126+V122 -> 1254528
R138: نصف داخلي: | T138: =T134+T130+T126+T122 -> 8316000
R139: الطاولة المشتركة | T139: =الايرادات!J83+الايرادات!J84 -> 68800 | V139: =V137/(H39+H37) -> 104.544
R140: المجموع | T140: =SUM(T137:U139) -> 8384800
P514: =H37+H39 -> 12000

Sheet الايرادات
F1: المعطيات | G1: النفقات | H1: للطباعة
C3: العنوان الأول : الإيــــــــــــــــــــرادات
C6: الباب | E6: العنــــــــــــــــــــــــــــــاوين | J6: المبلغ
C8: 1 | E8: إعانات التسيير الممنوحة من طرف الدولة | J8: =SUM(J11:J20) -> 9456192 | O8: =J8 -> 9456192
C11: - | E11: إعانة التسيير للتغذية | I11: =J11+J12+J13+J16+J17+J18+J19 -> 9000000 | J11: =معطيات!R131 -> 7068600
C12: - | E12: إعانة التسيير للمصالح المشتركة | J12: 893454
C13: - | E13: إعانات التسيير الإضافية المختلفة | J13: 49210
C14: - | E14: إعانات تسيير أقسام رياضة ودراسة | J14: 0
C15: - | E15: المنح (منح النظامين الداخلي ونصف الداخلي ) | J15: =معطيات!J51 -> 456192
C16: - | E16: منح التجهيز | J16: 30000
C17: - | E17: دعم الدولة للتلاميذ الممنوحين | J17: =معطيات!J53 -> 798336
C18: - | E18: إعانات تسيير وحدة الكشف والمتابعة | J18: 148000
C19: - | E19: إعانات النشاط الثقافي والرياضي | J19: 12400
C20: - | E20: إعانات دعم المكتبات المدرسية
C23: 2 | E23: الإعانات الممنوحة من الجماعات المحلية والمؤسسات والهيئات العمومية | J23: =SUM(J26:J35) -> 0 | O23: =J23 -> 0
C26: - | E26: إعانات الإصلاحات الكبرى | J26: 0
C27: - | E27: إعانات المؤسسات والهيئات العمومية
C28: - | E28: إعانات تنظيم مراكز التجميع والتصحيح للامتحانات المدرسية السنوية
C30: إعانات إخرى على عاتق الولاية
C32: -
C33: -
C34: -
C35: -
C38: 3 | E38: الهبات والوصايا | J38: =SUM(J41:J41) -> 0 | O38: =J38 -> 0
C41: - | E41: الهبات والوصايا التي تحصلت عليها المؤسسة بعد قبولها وفق التنظيم والتشريع المعمول به
C44: 4 | E44: إيرادات مرتبطة بنشاط المؤسسة | J44: =SUM(J47:J60) -> 46933 | O44: =J44 -> 46933
C47: - | E47: عائدات الايجار | J47: 42000
C48: - | E48: ايرادات الأعباء الملحقة (كهرباء - غاز - ماء ) | J48: 0
C49: - | E49: مستحقات المبيت | J49: 0
C50: - | E50: ايرادات بيع بقايا الخبز والشحوم والخردوات | J50: 3000
C51: - | E51: الإتلافات | J51: 1933
C52: - | E52: الايرادات الناتجة عن عملية الإسقاط | J52: 0
C53: - | E53: ايرادات بيع أشياء مصنوعة ومنتوج الحدائق | J53: 0
C54: - | E54: ايرادات بيع الكتاب المدرسي | J54: 0
C55: - | E55: ايرادات شبه المدرسية (الدفتر الصحي ، دفتر المراسلة ، أوراق الامتحانات ) | J55: 0
C56: كل ايراد آخر مرتبط بالنشاط العادي للمؤسسة
C57: -
C58: -
C59: -
C60: -
C63: 5 | E63: إيرادات مختلفة | J63: =SUM(J66:J70) -> 0 | O63: =J63 -> 0
C66: - | E66: تحصيل الدفع غير المستحق
C67: - | E67: تعويضات التأمينات وتعويضات أخرى
C68: - | E68: الباقي للتحصيل للسنوات السابقة | J68: 0
C69: - | E69: تصفية الحسابات خارج الميزانية
C70: - | E70: تعويض العجز في الميزانية
C73: 6 | E73: إيرادات ناتجة عن تسديد حقوق التسجيل | J73: =SUM(J76:J76) -> 6700 | O73: =J73 -> 6700
C76: - | E76: حقوق التسجيل (مصاريف المراسلة) | J76: 6700
C79: 7 | E79: إيرادات الإطعام | J79: =SUM(J82:J84) -> 70800 | O79: =J79 -> 70800
C82: - | E82: مساهمة عائلات التلاميذ غير الممنوحين في التغذية | J82: 2000
C83: - | E83: ايرادات ناتجة عن إطعام مستخدمي التربية (الطاولة المشتركة / الملتقيات ) | J83: 60000
C84: - | E84: ايرادات ناتجة عن إطعام المدعوين وآخرون | J84: 8800
C87: 8 | E87: المنحة المدرسية الخاصة لفائدة التلاميذ المعوزيتن | J87: =SUM(J90:J90) -> 0 | O87: =J87 -> 0
C90: - | E90: إعتمادات المنحة المدرسية الخاصة لفائدة التلاميذ المعوزيتن | J90: 0
C93: 9 | E93: مساهمة الدولة في مجانية الكتاب المدرسي لفائدة التلاميذ المعوزين | J93: =SUM(J96:J96) -> 0 | O93: =J93 -> 0
C96: - | E96: الاعتمادات المخصصة لتغطية تكاليف مجانية الكتاب المدرسي | J96: 0
C99: 10 | E99: الإعانة الخاصة بالنشاط التربوي الاستثنائي الواردة من الباب 42-12 المادة 01 | J99: =SUM(J102:J102) -> 0 | O99: =J99 -> 0
C102: - | E102: الاعتمادات الخاصة بالتلاميذ الصحراويين
C105: 11 | E105: ايرادات واردة من الباب 43-03 | J105: =SUM(J108:J108) -> 0 | O105: =J105 -> 0
C108: - | E108: تغطية العمليات التكوينية ونفقات الامتحانات والمسابقات المهنية
C112: 12 | E112: ايرادات واردة من الباب 43-60 المعنون "تشجيع التكوين أثناء الخدمة وعن بعد لمعلمي التعليم الإبتدائي " | J112: =SUM(J115:J115) -> 12375 | O112: =J112 -> 12375
C115: - | E115: التكوين أثناء الخدمة لمعلمي الإبتدائي | J115: 12375
C118: مجموع الايرادات
C119: =SUM(O8:O117) -> 9593000 | O119: =SUM(O8:O117) -> 9593000

Sheet النفقات
D1: المعطيات | E1: الايرادات | F1: للطباعة
C2: العنوان الثاني : النفقـــــــــــات
C5: الباب | D5: المادة | E5: العنــــــــــــــــــــــــــــــاوين | J5: الإعتمادات المخصصة
C8: تسديد المصاريف | J8: =SUM(J10:J11) -> 20000 | K8: البنود القديمة | M8: =IF(L8>الايرادات!$C$119,Q8,"") ->  | Q8: إنتبه : لقد تجاوزت الايرادات المسموح بتوزيعها .... !!!!!!!!!!!
C10: 1 | D10: 1 | E10: مصاريف المهام والتنقلات داخل التراب الوطني والاستقبالات والخرجات البيداغوجية | K10: 261 | L10: =J10 -> 0 | M10: =IF(L10>الايرادات!$C$119,Q10,"") ->  | O10: =J10 -> 0 | P10: =SUM($O$10:$O$11) -> 20000 | Q10: إنتبه : لقد تجاوزت الايرادات المسموح بتوزيعها .... !!!!!!!!!!!
D11: 2 | E11: مصاريف الدراسة ، الخبرة ، المحامون والمحضرون القضائيون | J11: 20000 | K11: 261 | L11: =L10+J11 -> 20000 | M11: =IF(L11>الايرادات!$C$119,Q11,"") ->  | O11: =J11 -> 20000 | Q11: إنتبه : لقد تجاوزت الايرادات المسموح بتوزيعها .... !!!!!!!!!!!
M12: =IF(L12>الايرادات!$C$119,Q12,"") ->  | Q12: إنتبه : لقد تجاوزت الايرادات المسموح بتوزيعها .... !!!!!!!!!!!
C13: التكاليف الملحقة | J13: =SUM(J15:J20) -> 450000 | M13: =IF(L13>الايرادات!$C$119,Q13,"") ->  | Q13: إنتبه : لقد تجاوزت الايرادات المسموح بتوزيعها .... !!!!!!!!!!!
M14: =IF(L14>الايرادات!$C$119,Q14,"") ->  | Q14: إنتبه : لقد تجاوزت الايرادات المسموح بتوزيعها .... !!!!!!!!!!!
C15: 2 | D15: 1 | E15: الماء ، الغاز ، الكهرباء ، الوقود والطاقة الشمسية | J15: 380000 | K15: 231 | L15: =J15+L11 -> 400000 | M15: =IF(L15>الايرادات!$C$119,Q15,"") ->  | O15: =J15 -> 380000 | P15: =SUM($O$15:$O$20) -> 450000 | Q15: إنتبه : لقد تجاوزت الايرادات المسموح بتوزيعها .... !!!!!!!!!!!
D16: 2 | E16: مصاريف البريد والمواصلات ( أتاوي الهاتف ، التلكس ، الأنترنت والرسوم المختلفة ) | J16: 70000 | K16: 232 | L16: =L15+J16 -> 470000 | M16: =IF(L16>الايرادات!$C$119,Q16,"") ->  | O16: =J16 -> 70000 | Q16: إنتبه : لقد تجاوزت الايرادات المسموح بتوزيعها .... !!!!!!!!!!!
D17: 3 | E17: مصاريف الإعلان في الصحف | J17: 0 | L17: =L16+J17 -> 470000 | M17: =IF(L17>الايرادات!$C$119,Q17,"") ->  | O17: 0 | Q17: إنتبه : لقد تجاوزت الايرادات المسموح بتوزيعها .... !!!!!!!!!!!
D18: 4 | E18: تسديد مصاريف الإستهلاك المنزلي للكهرباء والغاز بنسبة 50 % للجنوب | J18: 0 | L18: 470000 | M18: =IF(L18>الايرادات!$C$119,Q18,"") ->  | O18: 0 | Q18: إنتبه : لقد تجاوزت الايرادات المسموح بتوزيعها .... !!!!!!!!!!!
D19: 5 | E19: إقتناء وتركيب أدوات ولواحق الهاتف والربط بالانترنت | J19: 0 | L19: 470000 | M19: =IF(L19>الايرادات!$C$119,Q19,"") ->  | O19: 0 | Q19: إنتبه : لقد تجاوزت الايرادات المسموح بتوزيعها .... !!!!!!!!!!!
D20: 6 | E20: تأمين المباني | J20: 0 | L20: =L19+J20 -> 470000 | M20: =IF(L20>الايرادات!$C$119,Q20,"") ->  | O20: 0 | Q20: إنتبه : لقد تجاوزت الايرادات المسموح بتوزيعها .... !!!!!!!!!!!
M21: =IF(L21>الايرادات!$C$119,Q21,"") ->  | Q21: إنتبه : لقد تجاوزت الايرادات المسموح بتوزيعها .... !!!!!!!!!!!
C22: اللوازم | J22: =SUM(J24:J29) -> 75000 | M22: =IF(L22>الايرادات!$C$119,Q22,"") ->  | Q22: إنتبه : لقد تجاوزت الايرادات المسموح بتوزيعها .... !!!!!!!!!!!
M23: =IF(L23>الايرادات!$C$119,Q23,"") ->  | Q23: إنتبه : لقد تجاوزت الايرادات المسموح بتوزيعها .... !!!!!!!!!!!
C24: 3 | D24: 1 | E24: إقتناء لوازم المكتب | J24: 10000 | K24: 251 | L24: =L20+J24 -> 480000 | M24: =IF(L24>الايرادات!$C$119,Q24,"") ->  | O24: =J24 -> 10000 | P24: =SUM($O$24:$O$29) -> 75000 | Q24: إنتبه : لقد تجاوزت الايرادات المسموح بتوزيعها .... !!!!!!!!!!!
D25: 2 | E25: مستهلكات وبرامج الإعلام الآلي | J25: 15000 | K25: 251 | L25: =L24+J25 -> 495000 | M25: =IF(L25>الايرادات!$C$119,Q25,"") ->  | O25: =J25 -> 15000 | Q25: إنتبه : لقد تجاوزت الايرادات المسموح بتوزيعها .... !!!!!!!!!!!
D26: 3 | E26: مصاريف النسخ والطبع | J26: 15000 | K26: 251 | L26: =L25+J26 -> 510000 | M26: =IF(L26>الايرادات!$C$119,Q26,"") ->  | O26: 15000 | Q26: إنتبه : لقد تجاوزت الايرادات المسموح بتوزيعها .... !!!!!!!!!!!
D27: 4 | E27: البياضة | J27: 0 | K27: 221 | L27: 510000 | M27: =IF(L27>الايرادات!$C$119,Q27,"") ->  | O27: 0 | Q27: إنتبه : لقد تجاوزت الايرادات المسموح بتوزيعها .... !!!!!!!!!!!
D28: 5 | E28: المواد الصيدلانية | J28: 0 | K28: 222 | L28: 510000 | M28: =IF(L28>الايرادات!$C$119,Q28,"") ->  | O28: 0 | Q28: إنتبه : لقد تجاوزت الايرادات المسموح بتوزيعها .... !!!!!!!!!!!
D29: 6 | E29: مواد التنظيف | J29: 35000 | K29: 271 | L29: =L28+J29 -> 545000 | M29: =IF(L29>الايرادات!$C$119,Q29,"") ->  | O29: 35000 | Q29: إنتبه : لقد تجاوزت الايرادات المسموح بتوزيعها .... !!!!!!!!!!!
M30: =IF(L30>الايرادات!$C$119,Q30,"") ->  | Q30: إنتبه : لقد تجاوزت الايرادات المسموح بتوزيعها .... !!!!!!!!!!!
C31: الأدوات والأثاث | J31: =SUM(J33:J37) -> 59000 | M31: =IF(L31>الايرادات!$C$119,Q31,"") ->  | Q31: إنتبه : لقد تجاوزت الايرادات المسموح بتوزيعها .... !!!!!!!!!!!
M32: =IF(L32>الايرادات!$C$119,Q32,"") ->  | Q32: إنتبه : لقد تجاوزت الايرادات المسموح بتوزيعها .... !!!!!!!!!!!
C33: 4 | D33: 1 | E33: تجديد وصيانة أدوات وأثاث المكاتب والعتاد المدرسي والتجهيز العلمي والبيداغوجي | J33: 30000 | K33: 272 | L33: =L29+J33 -> 575000 | M33: =IF(L33>الايرادات!$C$119,Q33,"") ->  | O33: =J33 -> 30000 | P33: =SUM($O$33:$O$37) -> 59000 | Q33: إنتبه : لقد تجاوزت الايرادات المسموح بتوزيعها .... !!!!!!!!!!!
D34: 2 | E34: اقتناء و صيانة أجهزة الإعلام الآلي | J34: 0 | K34: 272 | L34: =L33+J34 -> 575000 | M34: =IF(L34>الايرادات!$C$119,Q34,"") ->  | O34: =J34 -> 0 | Q34: إنتبه : لقد تجاوزت الايرادات المسموح بتوزيعها .... !!!!!!!!!!!
D35: 3 | E35: اقتناء وصيانة أدوات الوقاية والأمن | J35: 14000 | K35: 272 | L35: =L34+J35 -> 589000 | M35: =IF(L35>الايرادات!$C$119,Q35,"") ->  | O35: 14000 | Q35: إنتبه : لقد تجاوزت الايرادات المسموح بتوزيعها .... !!!!!!!!!!!
D36: 4 | E36: تجديد و صيانة لوازم ومستلزمات المطعم والمطبخ | J36: 10000 | K36: 272 | L36: 599000 | M36: =IF(L36>الايرادات!$C$119,Q36,"") ->  | O36: 10000 | Q36: إنتبه : لقد تجاوزت الايرادات المسموح بتوزيعها .... !!!!!!!!!!!
D37: 5 | E37: اقتناء الستائر و الأعلام و لوازم الداخلية واللوحات الرسمية ولوحات التوجيه | J37: 5000 | K37: 221 | L37: 604000 | M37: =IF(L37>الايرادات!$C$119,Q37,"") ->  | O37: 5000 | Q37: إنتبه : لقد تجاوزت الايرادات المسموح بتوزيعها .... !!!!!!!!!!!
M38: =IF(L38>الايرادات!$C$119,Q38,"") ->  | Q38: إنتبه : لقد تجاوزت الايرادات المسموح بتوزيعها .... !!!!!!!!!!!
C39: اللوازم البيداغوجية | J39: =SUM(J41:J43) -> 156000 | M39: =IF(L39>الايرادات!$C$119,Q39,"") ->  | Q39: إنتبه : لقد تجاوزت الايرادات المسموح بتوزيعها .... !!!!!!!!!!!
M40: =IF(L40>الايرادات!$C$119,Q40,"") ->  | Q40: إنتبه : لقد تجاوزت الايرادات المسموح بتوزيعها .... !!!!!!!!!!!
C41: 5 | D41: 1 | E41: لوازم التجارب | J41: 30000 | K41: 241 | L41: =L37+J41 -> 634000 | M41: =IF(L41>الايرادات!$C$119,Q41,"") ->  | O41: =J41 -> 30000 | P41: =SUM($O$41:$O$43) -> 156000 | Q41: إنتبه : لقد تجاوزت الايرادات المسموح بتوزيعها .... !!!!!!!!!!!
D42: 2 | E42: مواد التجارب والكواشف ومواد المخابر | J42: 5000 | K42: 241 | L42: =L41+J42 -> 639000 | M42: =IF(L42>الايرادات!$C$119,Q42,"") ->  | O42: =J42 -> 5000 | Q42: إنتبه : لقد تجاوزت الايرادات المسموح بتوزيعها .... !!!!!!!!!!!
D43: 3 | E43: الإستنساخ ، الطباشير ، الأقلام ، الطلاسات وغيرها | J43: 121000 | K43: 242 | L43: =L42+J43 -> 760000 | M43: =IF(L43>الايرادات!$C$119,Q43,"") ->  | O43: 121000 | Q43: إنتبه : لقد تجاوزت الايرادات المسموح بتوزيعها .... !!!!!!!!!!!
M44: =IF(L44>الايرادات!$C$119,Q44,"") ->  | Q44: إنتبه : لقد تجاوزت الايرادات المسموح بتوزيعها .... !!!!!!!!!!!
C45: الإطعام | J45: =J47 -> 8384800 | M45: =IF(L45>الايرادات!$C$119,Q45,"") ->  | Q45: إنتبه : لقد تجاوزت الايرادات المسموح بتوزيعها .... !!!!!!!!!!!
M46: =IF(L46>الايرادات!$C$119,Q46,"") ->  | Q46: إنتبه : لقد تجاوزت الايرادات المسموح بتوزيعها .... !!!!!!!!!!!
C47: 6 | D47: 1 | E47: الإطعام | J47: =SUM(H49:J57) -> 8384800 | K47: 211 | L47: =L43+J47 -> 9144800 | M47: =IF(L47>الايرادات!$C$119,Q47,"") ->  | O47: =J47+H54 -> 8384800 | P47: =$O$47 -> 8384800 | Q47: إنتبه : لقد تجاوزت الايرادات المسموح بتوزيعها .... !!!!!!!!!!! | PE47: 8384800
M48: =IF(L48>الايرادات!$C$119,Q48,"") ->  | Q48: إنتبه : لقد تجاوزت الايرادات المسموح بتوزيعها .... !!!!!!!!!!!
C49: داخليين= عدد التلاميذ x المبلغ السنوي | H49: =C50*F50 -> 0 | K49: 211 | M49: =IF(L49>الايرادات!$C$119,Q49,"") ->  | Q49: إنتبه : لقد تجاوزت الايرادات المسموح بتوزيعها .... !!!!!!!!!!!
C50: =معطيات!D23 -> 0 | F50: =F53*2 -> 24000 | M50: =IF(L50>الايرادات!$C$119,Q50,"") ->  | Q50: إنتبه : لقد تجاوزت الايرادات المسموح بتوزيعها .... !!!!!!!!!!!
M51: =IF(L51>الايرادات!$C$119,Q51,"") ->  | Q51: إنتبه : لقد تجاوزت الايرادات المسموح بتوزيعها .... !!!!!!!!!!!
C52: نصف الداخليي ن = عدد التلاميذ x المبلغ السنوي | H52: =C53*F53 -> 8316000 | M52: =IF(L52>الايرادات!$C$119,Q52,"") ->  | Q52: إنتبه : لقد تجاوزت الايرادات المسموح بتوزيعها .... !!!!!!!!!!!
C53: =معطيات!F23 -> 693 | F53: =معطيات!P514 -> 12000 | K53: 211 | M53: =IF(L53>الايرادات!$C$119,Q53,"") ->  | Q53: إنتبه : لقد تجاوزت الايرادات المسموح بتوزيعها .... !!!!!!!!!!! | PF53: =F53/18 -> 666.6666667
H54: 0 | M54: =IF(L54>الايرادات!$C$119,Q54,"") ->  | Q54: إنتبه : لقد تجاوزت الايرادات المسموح بتوزيعها .... !!!!!!!!!!!
C55: إطعام المستخدمين | H55: =الايرادات!J83 -> 60000 | K55: 211 | M55: =IF(L55>الايرادات!$C$119,Q55,"") ->  | Q55: إنتبه : لقد تجاوزت الايرادات المسموح بتوزيعها .... !!!!!!!!!!!
M56: =IF(L56>الايرادات!$C$119,Q56,"") ->  | Q56: إنتبه : لقد تجاوزت الايرادات المسموح بتوزيعها .... !!!!!!!!!!!
C57: إطعام المدعوين و آخرون | H57: =الايرادات!J84 -> 8800 | K57: 211 | M57: =IF(L57>الايرادات!$C$119,Q57,"") ->  | Q57: إنتبه : لقد تجاوزت الايرادات المسموح بتوزيعها .... !!!!!!!!!!!
M58: =IF(L58>الايرادات!$C$119,Q58,"") ->  | Q58: إنتبه : لقد تجاوزت الايرادات المسموح بتوزيعها .... !!!!!!!!!!!
C59: الألبسة | J59: =J61 -> 17000 | M59: =IF(L59>الايرادات!$C$119,Q59,"") ->  | Q59: إنتبه : لقد تجاوزت الايرادات المسموح بتوزيعها .... !!!!!!!!!!!
M60: =IF(L60>الايرادات!$C$119,Q60,"") ->  | Q60: إنتبه : لقد تجاوزت الايرادات المسموح بتوزيعها .... !!!!!!!!!!!
C61: 7 | D61: 1 | E61: ملابس العمال المهنيين (المآزر ، بذلات العمال ، أحذية الوقاية ، قفازات ، بزات أعوان الأمن والوقاية ) | J61: 17000 | K61: 221 | L61: =L47+J61 -> 9161800 | M61: =IF(L61>الايرادات!$C$119,Q61,"") ->  | O61: =J61 -> 17000 | P61: =O61 -> 17000 | Q61: إنتبه : لقد تجاوزت الايرادات المسموح بتوزيعها .... !!!!!!!!!!!
M62: =IF(L62>الايرادات!$C$119,Q62,"") ->  | Q62: إنتبه : لقد تجاوزت الايرادات المسموح بتوزيعها .... !!!!!!!!!!!
C63: التأمين | J63: =J65 -> 0 | M63: =IF(L63>الايرادات!$C$119,Q63,"") ->  | Q63: إنتبه : لقد تجاوزت الايرادات المسموح بتوزيعها .... !!!!!!!!!!!
M64: =IF(L64>الايرادات!$C$119,Q64,"") ->  | Q64: إنتبه : لقد تجاوزت الايرادات المسموح بتوزيعها .... !!!!!!!!!!!
C65: 8 | D65: 1 | E65: تأمين التلاميذ أثناء الخرجات البيداغوجية | K65: 245 | L65: =L61+J65 -> 9161800 | M65: =IF(L65>الايرادات!$C$119,Q65,"") ->  | O65: =J65 -> 0 | P65: =O65 -> 0 | Q65: إنتبه : لقد تجاوزت الايرادات المسموح بتوزيعها .... !!!!!!!!!!!
M66: =IF(L66>الايرادات!$C$119,Q66,"") ->  | Q66: إنتبه : لقد تجاوزت الايرادات المسموح بتوزيعها .... !!!!!!!!!!!
C67: نفقات التكوين | J67: =SUM(J69:J72) -> 12375 | M67: =IF(L67>الايرادات!$C$119,Q67,"") ->  | Q67: إنتبه : لقد تجاوزت الايرادات المسموح بتوزيعها .... !!!!!!!!!!!
M68: =IF(L68>الايرادات!$C$119,Q68,"") ->  | Q68: إنتبه : لقد تجاوزت الايرادات المسموح بتوزيعها .... !!!!!!!!!!!
C69: 9 | D69: 1 | E69: مصاريف التكوين والتحسين المستمرللمستوى المنظم على المستوى الولائي | J69: 0 | K69: 422 | L69: =L65+J69 -> 9161800 | M69: =IF(L69>الايرادات!$C$119,Q69,"") ->  | O69: =J69 -> 0 | P69: =SUM(O69:O72) -> 12375 | Q69: إنتبه : لقد تجاوزت الايرادات المسموح بتوزيعها .... !!!!!!!!!!!
D70: 2 | E70: نفقات التكوين ما قبل الترقية | K70: 422 | L70: =L69+J70 -> 9161800 | M70: =IF(L70>الايرادات!$C$119,Q70,"") ->  | O70: =J70 -> 0 | Q70: إنتبه : لقد تجاوزت الايرادات المسموح بتوزيعها .... !!!!!!!!!!!
D71: 3 | E71: نفقات الامتحانات و المسابقات المهنية | K71: 422 | L71: =L70+J71 -> 9161800 | M71: =IF(L71>الايرادات!$C$119,Q71,"") ->  | O71: 0 | Q71: إنتبه : لقد تجاوزت الايرادات المسموح بتوزيعها .... !!!!!!!!!!!
D72: 4 | E72: تشجيع التكوين أثناء الخدمة و عن بعد لمعلمي التعليم الإبتدائي | J72: 12375 | K72: 422 | L72: 9174175 | M72: =IF(L72>الايرادات!$C$119,Q72,"") ->  | O72: 12375 | Q72: إنتبه : لقد تجاوزت الايرادات المسموح بتوزيعها .... !!!!!!!!!!!
M73: =IF(L73>الايرادات!$C$119,Q73,"") ->  | Q73: إنتبه : لقد تجاوزت الايرادات المسموح بتوزيعها .... !!!!!!!!!!!
C74: حظيرة السيارات | J74: =SUM(J76:J83) -> 0 | M74: =IF(L74>الايرادات!$C$119,Q74,"") ->  | Q74: إنتبه : لقد تجاوزت الايرادات المسموح بتوزيعها .... !!!!!!!!!!!
M75: =IF(L75>الايرادات!$C$119,Q75,"") ->  | Q75: إنتبه : لقد تجاوزت الايرادات المسموح بتوزيعها .... !!!!!!!!!!!
C76: 10 | D76: 1 | E76: إقتناء وتجديد السيارات | K76: 281 | L76: =L72+J76 -> 9174175 | M76: =IF(L76>الايرادات!$C$119,Q76,"") ->  | O76: =J76 -> 0 | P76: =SUM($O$76:$O$83) -> 0 | Q76: إنتبه : لقد تجاوزت الايرادات المسموح بتوزيعها .... !!!!!!!!!!!
D77: 2 | E77: الوقود والزيوت | K77: 282 | L77: =L76+J77 -> 9174175 | M77: =IF(L77>الايرادات!$C$119,Q77,"") ->  | O77: =J77 -> 0 | Q77: إنتبه : لقد تجاوزت الايرادات المسموح بتوزيعها .... !!!!!!!!!!!
D78: 3 | E78: صيانة وإصلاح السيارات وشراء قطع الغيار | K78: 282 | L78: =L77+J78 -> 9174175 | M78: =IF(L78>الايرادات!$C$119,Q78,"") ->  | O78: 0 | Q78: إنتبه : لقد تجاوزت الايرادات المسموح بتوزيعها .... !!!!!!!!!!!
D79: 4 | E79: اقتناء العجلات | K79: 282 | L79: 9174175 | M79: =IF(L79>الايرادات!$C$119,Q79,"") ->  | O79: 0 | Q79: إنتبه : لقد تجاوزت الايرادات المسموح بتوزيعها .... !!!!!!!!!!!
D80: 5 | E80: مصاريف الترقيم والتعريف | K80: 282 | L80: 9174175 | M80: =IF(L80>الايرادات!$C$119,Q80,"") ->  | O80: 0 | Q80: إنتبه : لقد تجاوزت الايرادات المسموح بتوزيعها .... !!!!!!!!!!!
D81: 6 | E81: تأمين السيارات | K81: 282 | L81: 9174175 | M81: =IF(L81>الايرادات!$C$119,Q81,"") ->  | O81: 0 | Q81: إنتبه : لقد تجاوزت الايرادات المسموح بتوزيعها .... !!!!!!!!!!!
D82: 7 | E82: مصاريف اقتناء قسيمة السيارات | K82: 282 | L82: 9174175 | M82: =IF(L82>الايرادات!$C$119,Q82,"") ->  | O82: 0 | Q82: إنتبه : لقد تجاوزت الايرادات المسموح بتوزيعها .... !!!!!!!!!!!
D83: 8 | E83: مصاريف المراقبة التقنية للسيارات | K83: 282 | L83: 9174175 | M83: =IF(L83>الايرادات!$C$119,Q83,"") ->  | O83: 0 | Q83: إنتبه : لقد تجاوزت الايرادات المسموح بتوزيعها .... !!!!!!!!!!!
M84: =IF(L84>الايرادات!$C$119,Q84,"") ->  | Q84: إنتبه : لقد تجاوزت الايرادات المسموح بتوزيعها .... !!!!!!!!!!!
C85: نفقات تسيير وحدة الكشف والمتابعة (UDS) | J85: =J87 -> 148000 | M85: =IF(L85>الايرادات!$C$119,Q85,"") ->  | Q85: إنتبه : لقد تجاوزت الايرادات المسموح بتوزيعها .... !!!!!!!!!!!
M86: =IF(L86>الايرادات!$C$119,Q86,"") ->  | Q86: إنتبه : لقد تجاوزت الايرادات المسموح بتوزيعها .... !!!!!!!!!!!
C87: 11 | D87: 1 | E87: نفقات تسيير وحدة الكشف والمتابعة (UDS) | J87: =الايرادات!J18 -> 148000 | L87: =L83+J87 -> 9322175 | M87: =IF(L87>الايرادات!$C$119,Q87,"") ->  | O87: =J87 -> 148000 | P87: =$O$87 -> 148000 | Q87: إنتبه : لقد تجاوزت الايرادات المسموح بتوزيعها .... !!!!!!!!!!!
M88: =IF(L88>الايرادات!$C$119,Q88,"") ->  | Q88: إنتبه : لقد تجاوزت الايرادات المسموح بتوزيعها .... !!!!!!!!!!!
C89: المكتبة المدرسية | J89: =SUM(J91:J92) -> 50600 | M89: =IF(L89>الايرادات!$C$119,Q89,"") ->  | Q89: إنتبه : لقد تجاوزت الايرادات المسموح بتوزيعها .... !!!!!!!!!!!
M90: =IF(L90>الايرادات!$C$119,Q90,"") ->  | Q90: إنتبه : لقد تجاوزت الايرادات المسموح بتوزيعها .... !!!!!!!!!!!
C91: 12 | D91: 1 | E91: شراء كتب ومجلات تربوية | J91: 30000 | K91: 244 | L91: =L87+J91 -> 9352175 | O91: =J91 -> 30000 | P91: =SUM($O$91:$O$92) -> 50600 | Q91: إنتبه : لقد تجاوزت الايرادات المسموح بتوزيعها .... !!!!!!!!!!!
D92: 2 | E92: الإشتراك في المجلات والدوريات البيداغوجية | J92: 20600 | K92: 244 | L92: =L91+J92 -> 9372775 | M92: =IF(L92>الايرادات!$C$119,Q92,"") ->  | O92: =J92 -> 20600 | Q92: إنتبه : لقد تجاوزت الايرادات المسموح بتوزيعها .... !!!!!!!!!!!
M93: =IF(L93>الايرادات!$C$119,Q93,"") ->  | Q93: إنتبه : لقد تجاوزت الايرادات المسموح بتوزيعها .... !!!!!!!!!!!
C94: النفقات المتعلقة بالنشاط الثقافي والرياضي | J94: =SUM(J96:J97) -> 98100 | M94: =IF(L94>الايرادات!$C$119,Q94,"") ->  | Q94: إنتبه : لقد تجاوزت الايرادات المسموح بتوزيعها .... !!!!!!!!!!!
M95: =IF(L95>الايرادات!$C$119,Q95,"") ->  | Q95: إنتبه : لقد تجاوزت الايرادات المسموح بتوزيعها .... !!!!!!!!!!!
C96: 13 | D96: 1 | E96: النفقات المتعلقة بالنشاط الثقافي | J96: 63100 | K96: 245 | L96: =L92+J96 -> 9435875 | M96: =IF(L96>الايرادات!$C$119,Q96,"") ->  | O96: =J96 -> 63100 | P96: =SUM($O$96:$O$97) -> 98100 | Q96: إنتبه : لقد تجاوزت الايرادات المسموح بتوزيعها .... !!!!!!!!!!!
D97: 2 | E97: النفقات المتعلقة بالنشاط الرياضي | J97: 35000 | K97: 245 | L97: =L96+J97 -> 9470875 | M97: =IF(L97>الايرادات!$C$119,Q97,"") ->  | O97: =J97 -> 35000 | Q97: إنتبه : لقد تجاوزت الايرادات المسموح بتوزيعها .... !!!!!!!!!!!
C98: يضم هذا الباب زيادة على النشاطين الثقافي والرياضي توزيع الجوائز التحفيزية للتلاميذ | M98: =IF(L98>الايرادات!$C$119,Q98,"") ->  | Q98: إنتبه : لقد تجاوزت الايرادات المسموح بتوزيعها .... !!!!!!!!!!!
M99: =IF(L99>الايرادات!$C$119,Q99,"") ->  | Q99: إنتبه : لقد تجاوزت الايرادات المسموح بتوزيعها .... !!!!!!!!!!!
C100: صيانة وتصليح المباني البيداغوجية والإدارية | J100: =SUM(J102:J104) -> 112997 | M100: =IF(L100>الايرادات!$C$119,Q100,"") ->  | Q100: إنتبه : لقد تجاوزت الايرادات المسموح بتوزيعها .... !!!!!!!!!!!
M101: =IF(L101>الايرادات!$C$119,Q101,"") ->  | Q101: إنتبه : لقد تجاوزت الايرادات المسموح بتوزيعها .... !!!!!!!!!!!
C102: 14 | D102: 1 | E102: صيانة المباني البيداغوجية والإدارية | K102: 271 | L102: =L97+J102 -> 9470875 | M102: =IF(L102>الايرادات!$C$119,Q102,"") ->  | O102: =J102 -> 0 | P102: =SUM($O$102:$O$104) -> 112997 | Q102: إنتبه : لقد تجاوزت الايرادات المسموح بتوزيعها .... !!!!!!!!!!!
D103: 2 | E103: اقتناء مواد البناء، الترصيص، الخردوات، كهرباء، التدفئة التكييف وأدوات الصيانة الصغيرة | J103: 112997 | K103: 271 | L103: =L102+J103 -> 9583872 | M103: =IF(L103>الايرادات!$C$119,Q103,"") ->  | O103: =J103 -> 112997 | Q103: إنتبه : لقد تجاوزت الايرادات المسموح بتوزيعها .... !!!!!!!!!!!
D104: 3 | E104: صيانة المساحات الخضراء والمسالك | K104: 271 | L104: =L103+J104 -> 9583872 | M104: =IF(L104>الايرادات!$C$119,Q104,"") ->  | O104: 0 | Q104: إنتبه : لقد تجاوزت الايرادات المسموح بتوزيعها .... !!!!!!!!!!!
M105: =IF(L105>الايرادات!$C$119,Q105,"") ->  | Q105: إنتبه : لقد تجاوزت الايرادات المسموح بتوزيعها .... !!!!!!!!!!!
C106: المصاريف القضائية والتعويضات المستحقة على عاتق الدولة | J106: =J108 -> 0 | M106: =IF(L106>الايرادات!$C$119,Q106,"") ->  | Q106: إنتبه : لقد تجاوزت الايرادات المسموح بتوزيعها .... !!!!!!!!!!!
M107: =IF(L107>الايرادات!$C$119,Q107,"") ->  | Q107: إنتبه : لقد تجاوزت الايرادات المسموح بتوزيعها .... !!!!!!!!!!!
C108: 15 | D108: 1 | E108: المصاريف القضائية والتعويضات المستحقة على عاتق الدولة | K108: 261 | L108: =L104+J108 -> 9583872 | M108: =IF(L108>الايرادات!$C$119,Q108,"") ->  | O108: =J108 -> 0 | P108: =$O$108 -> 0 | Q108: إنتبه : لقد تجاوزت الايرادات المسموح بتوزيعها .... !!!!!!!!!!!
M109: =IF(L109>الايرادات!$C$119,Q109,"") ->  | Q109: إنتبه : لقد تجاوزت الايرادات المسموح بتوزيعها .... !!!!!!!!!!!
C110: نفقات ذات طابع خاص | M110: =IF(L110>الايرادات!$C$119,Q110,"") ->  | Q110: إنتبه : لقد تجاوزت الايرادات المسموح بتوزيعها .... !!!!!!!!!!!
M111: =IF(L111>الايرادات!$C$119,Q111,"") ->  | Q111: إنتبه : لقد تجاوزت الايرادات المسموح بتوزيعها .... !!!!!!!!!!!
C112: نفقات تسيير أقسام الرياضة والدراسة | J112: =SUM(J113:J115) -> 0 | M112: =IF(L112>الايرادات!$C$119,Q112,"") ->  | Q112: إنتبه : لقد تجاوزت الايرادات المسموح بتوزيعها .... !!!!!!!!!!!
C113: 1 | D113: 1 | E113: مصاريف الإطعام | K113: 245 | L113: =L108+J113 -> 9583872 | M113: =IF(L113>الايرادات!$C$119,Q113,"") ->  | O113: =J113 -> 0 | P113: =SUM($O$113:$O$115) -> 0 | Q113: إنتبه : لقد تجاوزت الايرادات المسموح بتوزيعها .... !!!!!!!!!!!
D114: 2 | E114: نقل وتأمين التلاميذ | K114: 245 | L114: =L113+J114 -> 9583872 | M114: =IF(L114>الايرادات!$C$119,Q114,"") ->  | O114: =J114 -> 0 | Q114: إنتبه : لقد تجاوزت الايرادات المسموح بتوزيعها .... !!!!!!!!!!!
D115: 3 | E115: الأدوات واللوازم الرياضية والبيداغوجية | K115: 245 | L115: =L114+J115 -> 9583872 | M115: =IF(L115>الايرادات!$C$119,Q115,"") ->  | O115: 0 | Q115: إنتبه : لقد تجاوزت الايرادات المسموح بتوزيعها .... !!!!!!!!!!!
M116: =IF(L116>الايرادات!$C$119,Q116,"") ->  | Q116: إنتبه : لقد تجاوزت الايرادات المسموح بتوزيعها .... !!!!!!!!!!!
C117: منحة التمدرس الخاصة | J117: =J118 -> 0 | M117: =IF(L117>الايرادات!$C$119,Q117,"") ->  | Q117: إنتبه : لقد تجاوزت الايرادات المسموح بتوزيعها .... !!!!!!!!!!!
C118: 1 | D118: 1 | E118: منحة التمدرس الخاصة للتلاميذ المعوزين | J118: =الايرادات!J87 -> 0 | K118: 424 | L118: =L115+J118 -> 9583872 | M118: =IF(L118>الايرادات!$C$119,Q118,"") ->  | O118: =J118 -> 0 | P118: =$O$118 -> 0 | Q118: إنتبه : لقد تجاوزت الايرادات المسموح بتوزيعها .... !!!!!!!!!!!
M119: =IF(L119>الايرادات!$C$119,Q119,"") ->  | Q119: إنتبه : لقد تجاوزت الايرادات المسموح بتوزيعها .... !!!!!!!!!!!
C120: المنح المدرسية | J120: =J121 -> 0 | M120: =IF(L120>الايرادات!$C$119,Q120,"") ->  | Q120: إنتبه : لقد تجاوزت الايرادات المسموح بتوزيعها .... !!!!!!!!!!!
C121: 2 | D121: 1 | E121: منحة التجهيز لفائدة التلاميذ | J121: 0 | K121: 122 | L121: =L118+J121 -> 9583872 | M121: =IF(L121>الايرادات!$C$119,Q121,"") ->  | O121: =J121 -> 0 | P121: =O121 -> 0 | Q121: إنتبه : لقد تجاوزت الايرادات المسموح بتوزيعها .... !!!!!!!!!!!
M122: =IF(L122>الايرادات!$C$119,Q122,"") ->  | Q122: إنتبه : لقد تجاوزت الايرادات المسموح بتوزيعها .... !!!!!!!!!!!
C123: نفقات الكتاب المدرسي | J123: =SUM(J124:J125) -> 0 | K123: 131 | M123: =IF(L123>الايرادات!$C$119,Q123,"") ->  | Q123: إنتبه : لقد تجاوزت الايرادات المسموح بتوزيعها .... !!!!!!!!!!!
C124: 3 | D124: 1 | E124: تعويض النفقات المرتبطة بمجانية الكتاب المدرسي لفائدة التلاميذ المعوزين | J124: =الايرادات!J96 -> 0 | K124: 411 | L124: =L121+J124 -> 9583872 | M124: =IF(L124>الايرادات!$C$119,Q124,"") ->  | O124: =J124 -> 0 | P124: =SUM(O124:O125) -> 0 | Q124: إنتبه : لقد تجاوزت الايرادات المسموح بتوزيعها .... !!!!!!!!!!!
D125: 2 | E125: تسديد مستحقات الديوان الوطني للمطبوعات المدرسية من بيع الكتاب المدرسي والوثائق الشبه مدرسية | K125: 411 | L125: =L124+J125 -> 9583872 | M125: =IF(L125>الايرادات!$C$119,Q125,"") ->  | O125: =J125 -> 0 | Q125: إنتبه : لقد تجاوزت الايرادات المسموح بتوزيعها .... !!!!!!!!!!!
M126: =IF(L126>الايرادات!$C$119,Q126,"") ->  | Q126: إنتبه : لقد تجاوزت الايرادات المسموح بتوزيعها .... !!!!!!!!!!!
C127: نفقات النشاط التربوي الإستثنائي | J127: =SUM(J128:J129) -> 0 | M127: =IF(L127>الايرادات!$C$119,Q127,"") ->  | Q127: إنتبه : لقد تجاوزت الايرادات المسموح بتوزيعها .... !!!!!!!!!!!
C128: 4 | D128: 1 | E128: الإطعام | K128: 211 | L128: =L125+J128 -> 9583872 | M128: =IF(L128>الايرادات!$C$119,Q128,"") ->  | O128: =J128 -> 0 | P128: =SUM(O128:O129) -> 0 | Q128: إنتبه : لقد تجاوزت الايرادات المسموح بتوزيعها .... !!!!!!!!!!!
D129: 2 | E129: مصاريف الإقامة و التمدرس | K129: 211 | L129: =L128+J129 -> 9583872 | M129: =IF(L129>الايرادات!$C$119,Q129,"") ->  | O129: =J129 -> 0 | Q129: إنتبه : لقد تجاوزت الايرادات المسموح بتوزيعها .... !!!!!!!!!!!
C130: هذا الباب خاص للتكفل بإطعام وايواء التلاميذ الصحراويين
C132: المجموع العام النفقات
C133: =O135 -> 9583872
O135: =SUM($O$10:$O$129) -> 9583872 | P135: =SUM($P$10:$P$129) -> 9583872
C185: =الايرادات!C119-C133 -> 9128

Sheet الطباعة (hidden)
C4: الغلاف | Q4: المعطيات
C6: 1 | E6: 2 | G6: 3 | I6: 4 | K6: 5 | M6: 6 | O6: 7 | Q6: الايرادات
C8: 8 | E8: 9 | G8: 10 | I8: 11 | K8: 12 | M8: 13 | O8: التقرير | Q8: النفقات
C10: =IFERROR(IF(Q16<>0,"هناك فائض في الايرادات يقدر بـ",""),IF(Q16<Q17,"المبلغ الموزع في جانب النفقات أكبر من المبلغ الاجمالي للايرادات المسموح بتوزيعها","")) -> هناك فائض في الايرادات يقدر بـ | M10: =Q16 -> 9128
C12: =IF(M10<>0,C18,"") -> راجع جدول التوزيع لمعرفة ماذا يمثل هذا الفائض
I13: فائض الايرادات
Q16: =النفقات!C185 -> 9128
C18: راجع جدول التوزيع لمعرفة ماذا يمثل هذا الفائض

Sheet 0
D1: المعطيات | E1: الايرادات | F1: النفقات | G1: للطباعة
B4: الجمهورية الجزائرية الديمقراطية الشعبية
B6: وزارة التربية الوطنية
C8: مديرية التربية : | D8: =معطيات!$D$3 -> الشلف
C10: إسم المؤسســــة :
C12: الرقم الميكانوغرافي: | D12: =معطيات!$D$9 -> 02413
C14: رقم الحساب بالخزبنة: | D14: =معطيات!$D$11 -> 556/59
C16: العنــــــــــوان : | D16: =معطيات!$D$7 -> شارع الحرية الكرمية
C18: الدائـــــــــــرة: | D18: =معطيات!$K$5 -> الكريمية
C20: البلديـــــــــة: | D20: =معطيات!$K$7 -> الكريمية
C22: ميزانية التسيير
C31: السنة المالية : | F31: =معطيات!$K$9 -> 2018
B34: - | C34: القــــــــــــانون رقم : | D34: =معطيات!$D$15 -> 11-17 | E34: المؤرخ في : | F34: =معطيات!$F$15 -> 2017-12-27 | G34: المتضمن قانون المالية لسنــــــة : | I34: =$F$31 -> 2018
B36: - | C36: المرسوم التنفيذي رقم : | D36: =معطيات!$D$17 -> 18-22 | E36: المؤرخ في : | F36: =معطيات!$F$17 -> 2018-01-22 | G36: المتضمن توزيع الإعتمادات المخصصة
C38: للسيدة وزيرة التربية الوطنية من ميزانية التسيير بموجب قانون المالية لسنـــــة | G38: =$F$31 -> 2018
B40: - | C40: المرسوم التنفيذي رقم : | D40: 227 - 16 | E40: المؤرخ في : | F40: 31أوت 2016 | G40: المحدد للقانون الأساسي النموذجي للمتوسطة ,
B44: - | C44: المرسوم التنفيذي رقم : | D44: 230 - 10 | E44: المؤرخ في : | F44: 02أكتوبر 2010 | G44: الذي يحدد الأحكام المتعلقة بتنظيم الثانوية

Sheet 1
E1: المعطيات | F1: الايرادات | G1: النفقات | H1: للطباعة
C6: ميزانية التسيير
C8: التوزيع حسب الأبواب
C10: العنوان الأول : الإيــــــــــــــــرادات
C13: الأبواب | E13: العناوين | I13: الإيرادات المالية
I14: (دج)
C16: 1 | E16: إعانات التسيير الممنوحة من طرف الدولة | J16: ='5'!M13 -> 9456192
C18: 2 | E18: الإعانات الممنوحة من الجماعات المحلية والمؤسسات والهيئات العمومية | J18: ='5'!M18 -> 0
C20: 3 | E20: الهبات والوصايا | J20: ='5'!M23 -> 0
C22: 4 | E22: إيرادات مرتبطة بنشاط المؤسسة | J22: ='5'!M28 -> 46933
C24: 5 | E24: إيرادات مختلفة | J24: ='5'!M33 -> 0
C26: 6 | E26: إيرادات ناتجة عن تسديد حقوق التسجيل | J26: ='5'!M38 -> 6700
C28: 7 | E28: إيرادات الإطعام | J28: ='5'!M49 -> 70800
C30: 8 | E30: المنحة المدرسية الخاصة لفائدة التلاميذ المعوزيتن | J30: ='5'!M54 -> 0
C32: 9 | E32: مساهمة الدولة في مجانية الكتاب المدرسي لفائدة التلاميذ المعوزين | J32: ='5'!M59 -> 0
C34: 10 | E34: الإعانة الخاصة بالنشاط التربوي الاستثنائي الواردة من الباب 42-12 المادة 01 | J34: ='5'!M64 -> 0
C36: 11 | E36: ايرادات واردة من الباب 43-03 المعنون "التحسين المستمر للمستوى المنظم على المستوى الولائي ، نفقات | J36: ='6'!M14 -> 0
E37: التكوين ما قبل الترقية ونفقات الامتحانات والمسابقات المهنية"
C39: 12 | E39: ايرادات واردة من الباب 43-60 المعنون "تشجيع التكوين أثناء الخدمة وعن بعد لمعلمي التعليم الإبتدائي " | J39: ='6'!M19 -> 12375
E41: مجموع العنوان الأول | J41: =SUM(J16:J39) -> 9593000
C55: 1

Sheet 2
E1: المعطيات | F1: الايرادات | G1: النفقات | H1: للطباعة
C3: العنوان الثاني : النفقـــــــــــات
C6: الفرع الأول : نفقات التسيير
C8: الأبواب | E8: العناوين | I8: الإيرادات المالية
I9: (دج)
C11: 1 | E11: تسديد المصاريف | J11: ='8'!M16 -> 20000
C13: 2 | E13: التكاليف الملحقة | J13: ='8'!M31 -> 450000
C15: 3 | E15: اللوازم | J15: ='8'!M46 -> 75000
C17: 4 | E17: الأدوات والأثاث | J17: ='9'!M17 -> 59000
C19: 5 | E19: اللوازم البيداغوجية | J19: ='9'!M26 -> 156000
C21: 6 | E21: الإطعام | J21: ='9'!M38 -> 8384800
C23: 7 | E23: الألبسة | J23: ='9'!M43 -> 17000
C25: 8 | E25: التأمين | J25: ='9'!M48 -> 0
C27: 9 | E27: نفقات التكوين | J27: ='9'!M59 -> 12375
C29: 10 | E29: حظيرة السيارات | J29: ='10'!M23 -> 0
C31: 11 | E31: نفقات تسيير وحدة الكشف والمتابعة (UDS) | J31: ='10'!M28 -> 148000
C33: 12 | E33: المكتبة المدرسية | J33: ='10'!M35 -> 50600
C35: 13 | E35: النفقات المتعلقة بالنشاط الثقافي والرياضي | J35: ='10'!M42 -> 98100
C37: 14 | E37: صيانة وتصليح المباني البيداغوجية والإدارية | J37: ='11'!M13 -> 112997
C39: 15 | E39: المصاريف القضائية والتعويضات المستحقة على عاتق الدولة | J39: ='11'!M18 -> 0
E41: مجموع الفرع الأول | J41: =SUM(J11:J39) -> 9583872
B56: 2 | C56: 2

Sheet 3
E1: المعطيات | F1: الايرادات | G1: النفقات | H1: للطباعة
C4: الفرع الثاني : نفقات تسيير أقسام رياضة ودراسة
C6: الأبواب | E6: العناوين | I6: الإيرادات المالية
I7: (دج)
C9: 1 | E9: نفقات تسيير أقسام رياضة ودراسة | J9: ='12'!M15 -> 0
E11: مجموع الفرع الثاني | J11: =SUM(J9:J9) -> 0
C14: الفرع الثالث : نفقات ذات طابع خاص
C16: الأبواب | E16: العناوين | I16: الإيرادات المالية
I17: (دج)
C19: 1 | E19: منحة التمدرس الخاصة لفائدة التلاميذ المعوزين | J19: ='12'!M30 -> 0
C21: 2 | E21: المنح المدرسية | J21: ='12'!M35 -> 0
C23: 3 | E23: نفقات الكتاب المدرسي | J23: ='12'!M42 -> 0
C25: 4 | E25: نفقات النشاط التربوي الإستثنائي | J25: ='12'!M49 -> 0
E27: مجموع الفرع الثالث | J27: =SUM(J19:J25) -> 0
B53: 2 | C53: 3

Sheet 4
E1: المعطيات | F1: الايرادات | G1: النفقات | H1: للطباعة
D20: الإيـــــــــرادات
D24: التوزيع
D26: حسب العناوين ، الأبواب والمواد
B48: 4

Sheet 5
G1: المعطيات | H1: الايرادات | I1: النفقات | J1: للطباعة
C5: العنوان الأول : الإيــــــــــرادات
C8: الأبواب | D8: المواد | E8: العناوين | L8: الإيرادات المالية
L9: (دج)
C11: 1 | D11: 1 | F11: إعانات التسيير الممنوحة من طرف الدولة | M11: =الايرادات!J8 -> 9456192
E13: مجموع الباب 1 | M13: =M11 -> 9456192
C16: 2 | D16: 1 | F16: الإعانات الممنوحة من الجماعات المحلية والمؤسسات والهيئات العمومية | M16: =الايرادات!J23 -> 0
E18: مجموع الباب 2 | M18: =M16 -> 0
C21: 3 | D21: 1 | F21: الهبات والوصايا | M21: =الايرادات!J38 -> 0
E23: مجموع الباب 3 | M23: =M21 -> 0
C26: 4 | D26: 1 | F26: ايرادات مرتبطة بنشاط المؤسسة | M26: =الايرادات!J44 -> 46933
E28: مجموع الباب 4 | M28: =M26 -> 46933
C31: 5 | D31: 1 | F31: ايرادات مختلفة | M31: =الايرادات!J63 -> 0
E33: مجموع الباب 5 | M33: =M31 -> 0
C36: 6 | D36: 1 | F36: ايرادات ناتجة عن تسديد حقوق التسجيل | M36: =الايرادات!J73 -> 6700
E38: مجموع الباب 6 | M38: =M36 -> 6700
C41: 7 | F41: ايراداد الإطعام
D43: 1 | F43: مساهمة عائلات التلاميذ | M43: =الايرادات!J82 -> 2000
D45: 2 | F45: ايرادات ناتجة عن إطعام مستخدمي قطاع التربية | M45: =الايرادات!J83 -> 60000
D47: 3 | F47: ايرادات ناتجة عن إطعام المدعوين وآخرين | M47: =الايرادات!J84 -> 8800
E49: مجموع الباب 7 | M49: =SUM(M43:M47) -> 70800
C52: 8 | D52: 1 | F52: المنحة المدرسية الخاصة لفائدة التلاميذ المعوزين | M52: =الايرادات!J87 -> 0
E54: مجموع الباب 8 | M54: =M52 -> 0
C57: 9 | D57: 1 | F57: مساهمة الدولة في مجانية الكتاب المدرسي لفائدة التلاميذ المعوزين | M57: =الايرادات!J93 -> 0
E59: مجموع الباب 9 | M59: =M57 -> 0
C62: 10 | D62: 1 | F62: الإعانة الخاصة بالنشاط التربوي الإستثنائي الواردة من الباب 42-12/ المادة 1 | M62: =الايرادات!J99 -> 0
E64: مجموع الباب 10 | M64: =M62 -> 0
B71: 2 | C71: 5
M82: =M64+M59+M54+M49+M38+M33+M28+M23+M18+M13 -> 9580625

Sheet 6
G1: المعطيات | H1: الايرادات | I1: النفقات | J1: للطباعة
C5: العنوان الأول : الإيــــــــــرادات
C8: الأبواب | D8: المواد | E8: العناوين | L8: الإيرادات المالية
L9: (دج)
C11: 11 | D11: 1 | F11: ايرادات واردة من الباب 43-03 المعنون "التحسين المستمر للمستوى المنظم على المستوى الولائي، نفقات | M11: =الايرادات!J105 -> 0
F12: التكوين ما قبل الترقية ونفقات الامتحانات والمسابقات المهنية"
E14: مجموع الباب 11 | M14: =M11 -> 0
C17: 12 | D17: 1 | F17: ايرادات واردة من الباب 43-60 المعنون "تشجيع التكوين أثناء الخدمة وعن بعد لمعلمي التعليم الإبتدائي " | M17: =الايرادات!J112 -> 12375
E19: مجموع الباب 12 | M19: =M17 -> 12375
C22: مجموع العنوان الأول : الإيرادات
M23: =M68 -> 9593000
C56: 6
M67: =M14+M19 -> 12375
M68: =M67+'5'!M82 -> 9593000

Sheet 7
E1: المعطيات | F1: الايرادات | G1: النفقات | H1: للطباعة
D19: النفقـــــــــــــات
D23: التوزيع
D25: حسب العناوين ، الأبواب والمواد
B48: 7

Sheet 8
G1: المعطيات | H1: الايرادات | I1: النفقات | J1: للطباعة
C3: العنوان الثاني : النفقــــــــــــــــــات
C6: الفرع الأول : نفقات التسيير
C9: الأبواب | D9: المواد | E9: العناوين | L9: الإعتمادات المخصصة
L10: (دج)
C11: 1 | F11: تسديد المصاريف
D12: 1 | F12: مصاريف المهام والتنقلات داخل التراب الوطني | M12: =النفقات!J10 -> 0
D14: 2 | F14: مصاريف الدراسة ، الخبرة ، المحامون والمحضرون القضائيون | M14: =النفقات!J11 -> 20000
E16: مجموع الباب 1 | M16: =SUM(M12:M14) -> 20000
C18: 2 | F18: التكاليف الملحقة
D19: 1 | F19: الماء ، الغاز ، الكهرباء ، الوقود والطاقة الشمسية | M19: =النفقات!J15+Q19 -> 380000
D21: 2 | F21: مصاريف البريد والمواصلات ( أتاوي الهاتف ، التلكس ، الأنترنت والرسوم المختلفة ) | M21: =النفقات!J16 -> 70000
D23: 3 | F23: مصاريف الإعلان في الصحف | M23: =النفقات!J17 -> 0
D25: 4 | F25: تسديد مصاريف الإستهلاك المنزلي للكهرباء والغاز بنسبة 50 % للجنوب | M25: =النفقات!J18 -> 0
D27: 5 | F27: إقتناء وتركيب أدوات ولواحق الهاتف والربط بالانترنت | M27: =النفقات!J19 -> 0
D29: 6 | F29: تأمين المباني | M29: =النفقات!J20 -> 0
E31: مجموع الباب 2 | M31: =SUM(M19:M29) -> 450000
C33: 3 | F33: اللوازم
D34: 1 | F34: إقتناء لوازم المكتب | M34: =النفقات!J24 -> 10000
D36: 2 | F36: مستهلكات وبرامج الإعلام الآلي | M36: =النفقات!J25 -> 15000
D38: 3 | F38: مصاريف النسخ والطبع | M38: =النفقات!J26 -> 15000
D40: 4 | F40: البياضة | M40: =النفقات!J27 -> 0
D42: 5 | F42: المواد الصيدلانية | M42: =النفقات!J28 -> 0
D44: 6 | F44: مواد التنظيف | M44: =النفقات!J29 -> 35000
E46: مجموع الباب 3 | M46: =SUM(M34:M44) -> 75000
C61: 8
M70: =M16+M31+M46 -> 545000

Sheet 9
G1: المعطيات | H1: الايرادات | I1: النفقات | J1: للطباعة
C4: الأبواب | D4: المواد | E4: العناوين | L4: الإعتمادات المخصصة
L5: (دج)
C6: 4 | F6: الأدوات والأثاث
D7: 1 | F7: تجديد وصيانة أدوات وأثاث المكاتب والعتاد المدرسي | M7: =النفقات!J33 -> 30000
D9: 2 | F9: اقتناء و صيانة أجهزة الإعلام الآلي | M9: =النفقات!J34 -> 0
D11: 3 | F11: اقتناء وصيانة أدوات الوقاية والأمن | M11: =النفقات!J35 -> 14000
D13: 4 | F13: تجديد و صيانة لوازم ومستلزمات المطعم | M13: =النفقات!J36 -> 10000
D15: 5 | F15: اقتناء الستائر و الأعلام و لوازم الداخلية | M15: =النفقات!J37 -> 5000
E17: مجموع الباب 4 | M17: =SUM(M7:M15) -> 59000
C19: 5 | F19: اللوازم البيداغوجيـــــــــة
D20: 1 | F20: لوازم التجارب | M20: =النفقات!J41 -> 30000
D22: 2 | F22: مواد التجارب والكواشف ومواد المخابر | M22: =النفقات!J42 -> 5000
D24: 3 | F24: الإستنساخ ، الطباشير ، الأقلام ، الطلاسات وغيرها | M24: =النفقات!J43 -> 121000
E26: مجموع الباب 5 | M26: =SUM(M20:M24) -> 156000
C28: 6 | F28: الإطعام
D29: 1 | F29: إطعام التلاميذ | M29: =النفقات!H52 -> 8316000 | Q29: =معطيات!V137 -> 1254528
G30: داخليين = عدد التلاميذ x المبلغ السنوي
G31: =النفقات!C50 -> 0 | H31: =النفقات!F50 -> 24000 | I31: =H31*G31 -> 0
G32: نصف الداخليين = عدد التلاميذ x المبلغ السنوي
G33: =IF(معطيات!P32=0,النفقات!C53,معطيات!V139) -> 693 | H33: =النفقات!F53 -> 12000 | I33: =H33*G33 -> 8316000
D34: 2 | F34: إطعام المستخدمين | M34: =الايرادات!J83 -> 60000
D36: 3 | F36: إطعام المدعوين و آخرون | M36: =الايرادات!J84 -> 8800
E38: مجموع الباب 6 | M38: =SUM(M29:M36) -> 8384800
C40: 7 | F40: الألبسة
D41: 1 | F41: ملابس العمال المهنيين | M41: =النفقات!J61 -> 17000
E43: مجموع الباب 7 | M43: =M41 -> 17000
C45: 8 | F45: التأمين
D46: 1 | F46: تأمين التلاميذ أثناء الخرجات البيداغوجية | M46: =النفقات!J65 -> 0
E48: مجموع الباب 8 | M48: =M46 -> 0
C50: 9 | F50: نفقات التكوين
D51: 1 | F51: مصاريف التكوين والتحسين المستمرللمستوى المنظم على المستوى الولائي | M51: =النفقات!J69 -> 0
D53: 2 | F53: نفقات التكوين ما قبل الترقية | M53: =النفقات!J70 -> 0
D55: 3 | F55: نفقات الامتحانات و المسابقات المهنية | M55: =النفقات!J71 -> 0
D57: 4 | F57: تشجيع التكوين أثناء الخدمة و عن بعد لمعلمي التعليم الإبتدائي | M57: =النفقات!J72 -> 12375
E59: مجموع الباب 9 | M59: =SUM(M51:M57) -> 12375
C62: 9
M66: =M17+M26+M38+M43+M48+M59 -> 8629175

Sheet 10
G1: المعطيات | H1: الايرادات | I1: النفقات | J1: للطباعة
C4: الأبواب | D4: المواد | E4: العناوين | L4: الإعتمادات المخصصة
L5: (دج)
C6: 10 | F6: حظيرة السيارات
D7: 1 | F7: اقتناء وتجديد السيارات | M7: =النفقات!J76 -> 0
D9: 2 | F9: الوقود والزيوت | M9: =النفقات!J77 -> 0
D11: 3 | F11: صيانة وتصليح و شحن السيارات وشراء قطع الغيار | M11: =النفقات!J78 -> 0
D13: 4 | F13: اقتناء العجلات | M13: =النفقات!J79 -> 0
D15: 5 | F15: مصاريف الترقيم والتعريف | M15: =النفقات!J80 -> 0
D17: 6 | F17: تأمين السيارات | M17: =النفقات!J81 -> 0
D19: 7 | F19: مصاريف اقتناء قسيمة السيارات | M19: =النفقات!J82 -> 0
D22: 8 | F22: مصاريف المراقبة التقنية للسيارات | M22: =النفقات!J83 -> 0
E23: مجموع الباب 10 | M23: =SUM(M7:M22) -> 0
C25: 11 | F25: نفقات تسيير وحدات الكشف والمتابعة (UDS)
D26: 1 | F26: نفقات تسيير وحدات الكشف والمتابعة (UDS) | M26: =النفقات!J87 -> 148000
E28: مجموع الباب 11 | M28: =M26 -> 148000
C30: 12 | F30: المكتبة المدرسية
D31: 1 | F31: شراء كتب ومجلات تربوية | M31: =النفقات!J91 -> 30000
D33: 2 | F33: الإشتراك في المجلات والدوريات البيداغوجية | M33: =النفقات!J92 -> 20600
E35: مجموع الباب 12 | M35: =SUM(M31:M33) -> 50600
C37: 13 | F37: النفقات المتعلقة بالنشاط الثقافي والرياضي
D38: 1 | F38: النفقات المتعلقة بالنشاط الثقافي | M38: =النفقات!J96 -> 63100
D40: 2 | F40: النفقات المتعلقة بالنشاط الرياضي | M40: =النفقات!J97 -> 35000
E42: مجموع الباب 13 | M42: =SUM(M38:M40) -> 98100
C60: 10
M71: =M23+M28+M35+M42 -> 296700

Sheet 11
G1: المعطيات | H1: الايرادات | I1: النفقات | J1: للطباعة
C4: الأبواب | D4: المواد | E4: العناوين | L4: الإعتمادات المخصصة
L5: (دج)
C6: 14 | F6: صيانة وتصليح المباني البيداغوجية والإدارية
D7: 1 | F7: صيانة وتصليح المباني البيدغوجية والإدارية | M7: =النفقات!J102 -> 0
D9: 2 | F9: اقتناء مواد البناء، الترصيص، الخردوات، كهرباء، التدفئة التكييف وأدوات الصيانة الصغيرة | M9: =النفقات!J103 -> 112997
D11: 3 | F11: صيانة المساحات الخضراء والمسالك | M11: =النفقات!J104 -> 0
E13: مجموع الباب 14 | M13: =SUM(M7:M11) -> 112997
C15: 15 | F15: المصاريف القضائية والتعويضات المستحقة على عاتق الدولة
D16: 1 | F16: المصاريف القضائية والتعويضات المستحقة على عاتق الدولة | M16: =النفقات!J108 -> 0
E18: مجموع الباب 15 | M18: =M16 -> 0
C22: مجموع الفرع الأول : نفقات التسيير | M22: =M68 -> 9583872
C56: 11
M66: =M13+M18 -> 112997
M68: =M66+'10'!M71+'9'!M66+'8'!M70 -> 9583872

Sheet 12
G1: المعطيات | H1: الايرادات | I1: النفقات | J1: للطباعة
C3: الفرع الثاني : نفقات تسيير أقسام الرياضة والدراسة
C6: الأبواب | D6: المواد | E6: العناوين | L6: الإعتمادات المخصصة
L7: (دج)
C8: 1 | F8: نفقات تسيير أقسام الرياضة والدراسة
D9: 1 | F9: مصاريف الإطعام | M9: =النفقات!J113 -> 0
D11: 2 | F11: نقل وتأمين التلاميذ | M11: =النفقات!J114 -> 0
D13: 3 | F13: إقتناء الأدوات واللوازم الرياضية والبياغوجية | M13: =النفقات!J115 -> 0
E15: مجموع الباب 1 | M15: =SUM(M9:M13) -> 0
C19: مجموع الفرع الثاني : نفقات تسيير أقسام الرياضة والدراسة | M19: =M15 -> 0
C22: الفرع الثالث : نفقات ذات طابع خاص
C25: الأبواب | D25: المواد | E25: العناوين | L25: الإعتمادات المخصصة
L26: (دج)
C27: 1 | F27: منحة التمدرس الخاصة لفائدة التلاميذ المعوزين
D28: 1 | F28: منحة التمدرس الخاصة لفائدة التلاميذ المعوزين | M28: =النفقات!J118 -> 0
E30: مجموع الباب 1 | M30: =M28 -> 0
C32: 2 | F32: المنح المدرسية
D33: 1 | F33: منحة التجهيز لفائدة التلاميذ | M33: =النفقات!J121 -> 0
E35: مجموع الباب 2 | M35: =M33 -> 0
C37: 3 | F37: نفقات الكتاب المدرسي
D38: 1 | F38: تعويض النفقات المرتبطة بمجانية الكتاب المدرسي لفائدة التلاميذ المعوزين | M38: =النفقات!J124 -> 0
D40: 2 | F40: تسديد مستحقات الديوان الوطني للمطبوعات المدرسية من بيع الكتاب المدرسي | M40: =النفقات!J125 -> 0
E42: مجموع الباب 3 | M42: =SUM(M38:M40) -> 0
C44: 4 | F44: نفقات النشاط التربوي الإستثنائي
D45: 1 | F45: الإطعام | M45: =النفقات!J128 -> 0
D47: 2 | F47: مصاريف الإقامة و التمدرس | M47: =النفقات!J129 -> 0
E49: مجموع الباب 4 | M49: =SUM(M45:M47) -> 0
C53: مجموع الفرع الثالث : نفقات ذات طابع خاص | M53: =M49+M42+M35+M30 -> 0
C57: مجموع العنوان الثاني : النفقات | M57: =M53+M19+'11'!M22 -> 9583872
C61: 12
M65: =M19 -> 0

Sheet 13
E1: المعطيات | G1: الايرادات | H1: النفقات | I1: للطباعة
C4: حوصلة عامة للإيرادات والنفقات
J8: المبالغ
J9: (دج)
C11: مجموع العنوان الأول : الإيرادات | K11: ='1'!J41 -> 9593000
C14: العنوان الثاني : النفقات
G15: الفرع الأول : | H15: نفقات التسيير | K15: ='11'!M22 -> 9583872
G17: الفرع الثاني : | H17: نفقات تسيير أقسام رياضة ودراسة | K17: ='12'!M19 -> 0
G19: الفرع الثالث : | H19: نفقات ذات طابع خاص | K19: ='12'!M53 -> 0
C22: مجموع العنوان الثاني: النفقات | K22: =SUM(K15:L19) -> 9583872
C26: لوحظ و صودق على ميزانية تسيير المؤسسة: | G26: =معطيات!D5 -> متوسطة شا فع العربي الكريمية | I26: بعنوان السنة المالية : | L26: =معطيات!K9 -> 2018
C28: حددت بمبلغ
C29: - | E29: في الايرادات بمبلغ يقدر بـ : | H29: =K11 -> 9593000 | I29: تسعة ملايين وخمسة مائة وتسعة وخمسون الف دينار جزائري
C31: - | E31: في النفقات بمبلغ يقدر بـ : | H31: =K22 -> 9583872 | I31: تسعة ملايين وخمسة مائة وتسعة واربعون الف وثمانية مائة وإثنان وسبعون دينار جزائري
C33: - | E33: أي بفائض في الايرادات يقدر بـ : | H33: =L60 -> 9128
P34: ='فائض الايرادات'!G18 -> 9128
P36: =H33 -> 9128
C37: =معطيات!K7 -> الكريمية | F37: في: | G37: =معطيات!K11 -> 2018-02-26 | I37: =معطيات!D3 -> الشلف | J37: في:
E39: مدير المؤسسة | I39: مدير التربية | P39: =P34-P36 -> 0
C55: 13
I60: فائض الايرادات: | L60: =IF(K11>K22,K11-K22,0) -> 9128

Sheet بطاقة االمراقبة
C2: =معطيات!D5 -> متوسطة شا فع العربي الكريمية | J2: السنة المالية : | K2: =معطيات!K9 -> 2018
C3: بطاقة متابعة تنفيذ الميزانية | N3: المعطيات
C5: الباب | D5: المادة | E5: العنــــــــــــــــــــــــــــــاوين | I5: الاعتماد المخصص | J5: المصاريف المحققة | K5: الرصيد | N5: =IF(I7<>0,1,0) -> 0
N6: 1
C7: 1 | D7: 1 | E7: =النفقات!E10 -> مصاريف المهام والتنقلات داخل التراب الوطني والاستقبالات والخرجات البيداغوجية | I7: =النفقات!J10 -> 0 | K7: =I7-J7 -> 0 | N7: =IF(I7<>0,1,0) -> 0 | O7: =I7 -> 0 | P7: =J7 -> 0
D8: 2 | E8: =النفقات!E11 -> مصاريف الدراسة ، الخبرة ، المحامون والمحضرون القضائيون | I8: =النفقات!J11 -> 20000 | K8: =I8-J8 -> 20000 | N8: 1 | O8: =I8 -> 20000 | P8: =J8 -> 0
N9: 0 | O9: 0 | P9: 0
C10: 2 | D10: 1 | E10: =النفقات!E15 -> الماء ، الغاز ، الكهرباء ، الوقود والطاقة الشمسية | I10: =النفقات!J15 -> 380000 | J10: 258477.43 | K10: =I10-J10 -> 121522.57 | N10: 1 | O10: 380000 | P10: 258477.43
D11: 2 | E11: =النفقات!E16 -> مصاريف البريد والمواصلات ( أتاوي الهاتف ، التلكس ، الأنترنت والرسوم المختلفة ) | I11: =النفقات!J16 -> 70000 | J11: 49812.37 | K11: 20187.63 | N11: 1 | O11: 70000 | P11: 49812.37
D12: 3 | E12: =النفقات!E17 -> مصاريف الإعلان في الصحف | I12: =النفقات!J17 -> 0 | K12: 0 | N12: 0 | O12: 0 | P12: 0
D13: 4 | E13: =النفقات!E18 -> تسديد مصاريف الإستهلاك المنزلي للكهرباء والغاز بنسبة 50 % للجنوب | I13: =النفقات!J18 -> 0 | K13: 0 | N13: 0 | O13: 0 | P13: 0
D14: 5 | E14: =النفقات!E19 -> إقتناء وتركيب أدوات ولواحق الهاتف والربط بالانترنت | I14: =النفقات!J19 -> 0 | K14: 0 | N14: 0 | O14: 0 | P14: 0
D15: 6 | E15: =النفقات!E20 -> تأمين المباني | I15: =النفقات!J20 -> 0 | K15: 0 | N15: 0 | O15: 0 | P15: 0
N16: 0 | O16: 0 | P16: 0
C17: 3 | D17: 1 | E17: =النفقات!E24 -> إقتناء لوازم المكتب | I17: =النفقات!J24 -> 10000 | K17: =I17-J17 -> 10000 | N17: 1 | O17: 10000 | P17: 0
D18: 2 | E18: =النفقات!E25 -> مستهلكات وبرامج الإعلام الآلي | I18: =النفقات!J25 -> 15000 | J18: 14280 | K18: =I18-J18 -> 720 | N18: 1 | O18: 15000 | P18: 14280
D19: 3 | E19: =النفقات!E26 -> مصاريف النسخ والطبع | I19: =النفقات!J26 -> 15000 | K19: =I19-J19 -> 15000 | N19: 1 | O19: 15000 | P19: 0
D20: 4 | E20: =النفقات!E27 -> البياضة | I20: =النفقات!J27 -> 0 | K20: =I20-J20 -> 0 | N20: 0 | O20: =I20 -> 0 | P20: 0
D21: 5 | E21: =النفقات!E28 -> المواد الصيدلانية | I21: =النفقات!J28 -> 0 | K21: 0 | N21: 0 | O21: 0 | P21: 0
D22: 6 | E22: =النفقات!E29 -> مواد التنظيف | I22: =النفقات!J29 -> 35000 | K22: 35000 | N22: 1 | O22: 35000 | P22: 0
N23: 1 | O23: 0 | P23: 0
C24: 4 | D24: 1 | E24: =النفقات!E33 -> تجديد وصيانة أدوات وأثاث المكاتب والعتاد المدرسي والتجهيز العلمي والبيداغوجي | I24: =النفقات!J33 -> 30000 | J24: 6800 | K24: =I24-J24 -> 23200 | N24: 1 | O24: 30000 | P24: 6800
D25: 2 | E25: =النفقات!E34 -> اقتناء و صيانة أجهزة الإعلام الآلي | I25: =النفقات!J34 -> 0 | K25: =I25-J25 -> 0 | N25: 0 | O25: 0 | P25: 0
D26: 3 | E26: =النفقات!E35 -> اقتناء وصيانة أدوات الوقاية والأمن | I26: =النفقات!J35 -> 14000 | J26: 8925 | K26: 5075 | N26: 1 | O26: 14000 | P26: 8925
D27: 4 | E27: =النفقات!E36 -> تجديد و صيانة لوازم ومستلزمات المطعم والمطبخ | I27: =النفقات!J36 -> 10000 | K27: 10000 | N27: 1 | O27: 10000 | P27: 0
D28: 5 | E28: =النفقات!E37 -> اقتناء الستائر و الأعلام و لوازم الداخلية واللوحات الرسمية ولوحات التوجيه | I28: =النفقات!J37 -> 5000 | J28: 2850 | K28: 2150 | N28: 1 | O28: 5000 | P28: 2850
N29: 1 | O29: 0 | P29: 0
C30: 5 | D30: 1 | E30: =النفقات!E41 -> لوازم التجارب | I30: =النفقات!J41 -> 30000 | K30: =I30-J30 -> 30000 | N30: =IF(I30<>0,1,0) -> 1 | O30: 30000 | P30: 0
D31: 2 | E31: =النفقات!E42 -> مواد التجارب والكواشف ومواد المخابر | I31: =النفقات!J42 -> 5000 | K31: =I31-J31 -> 5000 | N31: 1 | O31: 5000 | P31: 0
D32: 3 | E32: =النفقات!E43 -> الإستنساخ ، الطباشير ، الأقلام ، الطلاسات وغيرها | I32: =النفقات!J43 -> 121000 | K32: 121000 | N32: 1 | O32: =I32 -> 121000 | P32: 0
N33: 1 | O33: 0 | P33: 0
C34: 6 | D34: 1 | E34: =النفقات!E47 -> الإطعام | I34: =النفقات!J47 -> 8384800 | J34: 4284507.5 | K34: =I34-J34 -> 4100292.5 | N34: 1 | O34: 8384800 | P34: 4284507.5
N35: 1 | O35: 0 | P35: 0
C36: 7 | D36: 1 | E36: =النفقات!E61 -> ملابس العمال المهنيين (المآزر ، بذلات العمال ، أحذية الوقاية ، قفازات ، بزات أعوان الأمن والوقاية ) | I36: =النفقات!J61 -> 17000 | K36: =I36-J36 -> 17000 | N36: 1 | O36: 17000 | P36: 0
N37: 1 | O37: 0 | P37: 0
C38: 8 | D38: 1 | E38: =النفقات!E65 -> تأمين التلاميذ أثناء الخرجات البيداغوجية | I38: =النفقات!J65 -> 0 | K38: =I36-J36 -> 17000 | N38: 0 | O38: 0 | P38: 0
N39: 1 | O39: 0 | P39: 0
C40: 9 | D40: 1 | E40: =النفقات!E69 -> مصاريف التكوين والتحسين المستمرللمستوى المنظم على المستوى الولائي | I40: =النفقات!J69 -> 0 | K40: =I40-J40 -> 0 | N40: =IF(I40<>0,1,0) -> 0 | O40: 0 | P40: 0
D41: 2 | E41: =النفقات!E70 -> نفقات التكوين ما قبل الترقية | I41: =النفقات!J70 -> 0 | K41: =I41-J41 -> 0 | N41: 0 | O41: 0 | P41: 0
D42: 3 | E42: =النفقات!E71 -> نفقات الامتحانات و المسابقات المهنية | I42: =النفقات!J71 -> 0 | K42: 0 | N42: 0 | O42: 0 | P42: 0
D43: 4 | E43: =النفقات!E72 -> تشجيع التكوين أثناء الخدمة و عن بعد لمعلمي التعليم الإبتدائي | I43: =النفقات!J72 -> 12375 | K43: 12375 | N43: 1 | O43: 12375 | P43: 0
N44: 1 | O44: 0 | P44: 0
C45: 10 | D45: 1 | E45: =النفقات!E76 -> إقتناء وتجديد السيارات | I45: =النفقات!J76 -> 0 | K45: =I45-J45 -> 0 | N45: 0 | O45: =I45 -> 0 | P45: 0
D46: 2 | E46: =النفقات!E77 -> الوقود والزيوت | I46: =النفقات!J77 -> 0 | K46: =I46-J46 -> 0 | N46: 0 | O46: 0 | P46: 0
D47: 3 | E47: =النفقات!E78 -> صيانة وإصلاح السيارات وشراء قطع الغيار | I47: =النفقات!J78 -> 0 | K47: 0 | N47: 0 | O47: =I47 -> 0 | P47: 0
D48: 4 | E48: =النفقات!E79 -> اقتناء العجلات | I48: =النفقات!J79 -> 0 | K48: 0 | N48: 0 | O48: 0 | P48: 0
D49: 5 | E49: =النفقات!E80 -> مصاريف الترقيم والتعريف | I49: =النفقات!J80 -> 0 | K49: 0 | N49: =IF(I49<>0,1,0) -> 0 | O49: 0 | P49: 0
D50: 6 | E50: =النفقات!E81 -> تأمين السيارات | I50: =النفقات!J81 -> 0 | K50: 0 | N50: 0 | O50: 0 | P50: 0
D51: 7 | E51: =النفقات!E82 -> مصاريف اقتناء قسيمة السيارات | I51: =النفقات!J82 -> 0 | K51: 0 | N51: 0 | O51: 0 | P51: 0
D52: 8 | E52: =النفقات!E83 -> مصاريف المراقبة التقنية للسيارات | I52: =النفقات!J83 -> 0 | K52: 0 | N52: 0 | O52: 0 | P52: 0
N53: 1 | O53: 0 | P53: 0
C54: 11 | D54: 1 | E54: =النفقات!E87 -> نفقات تسيير وحدة الكشف والمتابعة (UDS) | I54: =النفقات!J87 -> 148000 | K54: =I54-J54 -> 148000 | N54: 1 | O54: 148000 | P54: 0
N55: 1 | O55: 0 | P55: 0
C56: 12 | D56: 1 | E56: =النفقات!E91 -> شراء كتب ومجلات تربوية | I56: =النفقات!J91 -> 30000 | K56: =I56-J56 -> 30000 | N56: 1 | O56: 30000 | P56: 0
D57: 2 | E57: =النفقات!E92 -> الإشتراك في المجلات والدوريات البيداغوجية | I57: =النفقات!J92 -> 20600 | J57: 20513.6 | K57: =I57-J57 -> 86.4 | N57: 1 | O57: 20600 | P57: 20513.6
N58: 1 | O58: 0 | P58: 0
C59: 13 | D59: 1 | E59: =النفقات!E96 -> النفقات المتعلقة بالنشاط الثقافي | I59: =النفقات!J96 -> 63100 | J59: 61050 | K59: =I59-J59 -> 2050 | N59: 1 | O59: 63100 | P59: 61050
D60: 2 | E60: =النفقات!E97 -> النفقات المتعلقة بالنشاط الرياضي | I60: =النفقات!J97 -> 35000 | K60: =I60-J60 -> 35000 | N60: 1 | O60: =I60 -> 35000 | P60: 0
N61: 1 | O61: 0 | P61: 0
C62: 14 | D62: 1 | E62: =النفقات!E102 -> صيانة المباني البيداغوجية والإدارية | I62: =النفقات!J102 -> 0 | K62: =I62-J62 -> 0 | N62: 0 | O62: 0 | P62: 0
D63: 2 | E63: =النفقات!E103 -> اقتناء مواد البناء، الترصيص، الخردوات، كهرباء، التدفئة التكييف وأدوات الصيانة الصغيرة | I63: =النفقات!J103 -> 112997 | K63: =I63-J63 -> 112997 | N63: =IF(I63<>0,1,0) -> 1 | O63: 112997 | P63: 0
D64: 3 | E64: =النفقات!E104 -> صيانة المساحات الخضراء والمسالك | I64: =النفقات!J104 -> 0 | K64: =I64-J64 -> 0 | N64: 0 | O64: =I64 -> 0 | P64: 0
N65: 1 | O65: 0 | P65: 0
C66: 15 | D66: 1 | E66: =النفقات!E108 -> المصاريف القضائية والتعويضات المستحقة على عاتق الدولة | I66: =النفقات!J108 -> 0 | K66: =I66-J66 -> 0 | N66: 0 | O66: 0 | P66: 0
N67: 1 | O67: 0 | P67: 0
C68: نفقات تسيير أقسام الرياضة والدراسة | N68: 0 | O68: 0 | P68: 0
C69: 1 | D69: 1 | E69: =النفقات!E113 -> مصاريف الإطعام | I69: =النفقات!J113 -> 0 | K69: =I69-J69 -> 0 | N69: 0 | O69: 0 | P69: 0
D70: 2 | E70: =النفقات!E114 -> نقل وتأمين التلاميذ | I70: =النفقات!J114 -> 0 | K70: =I70-J70 -> 0 | N70: 0 | O70: 0 | P70: 0
D71: 3 | E71: =النفقات!E115 -> الأدوات واللوازم الرياضية والبيداغوجية | I71: =النفقات!J115 -> 0 | K71: 0 | N71: 0 | O71: 0 | P71: 0
N72: 1 | O72: =I72 -> 0 | P72: =J72 -> 0
C73: منحة التمدرس الخاصة | N73: =IF(I73<>0,1,0) -> 0 | O73: 0 | P73: 0
C74: 1 | D74: 1 | E74: =النفقات!E118 -> منحة التمدرس الخاصة للتلاميذ المعوزين | I74: =النفقات!J118 -> 0 | K74: =I74-J74 -> 0 | N74: 0 | O74: 0 | P74: 0
N75: 1 | O75: 0 | P75: 0
C76: المنح المدرسية | N76: =IF(I76<>0,1,0) -> 0 | O76: 0 | P76: 0
C77: 2 | D77: 1 | E77: =النفقات!E121 -> منحة التجهيز لفائدة التلاميذ | I77: =النفقات!J121 -> 0 | K77: =I77-J77 -> 0 | N77: 0 | O77: =I77 -> 0 | P77: 0
N78: 1 | O78: =I78 -> 0 | P78: 0
C79: نفقات الكتاب المدرسي | N79: 0 | O79: 0 | P79: 0
C80: 3 | D80: 1 | E80: =النفقات!E124 -> تعويض النفقات المرتبطة بمجانية الكتاب المدرسي لفائدة التلاميذ المعوزين | I80: =النفقات!J124 -> 0 | K80: =I80-J80 -> 0 | N80: 0 | O80: 0 | P80: 0
D81: 2 | E81: =النفقات!E125 -> تسديد مستحقات الديوان الوطني للمطبوعات المدرسية من بيع الكتاب المدرسي والوثائق الشبه مدرسية | I81: =النفقات!J125 -> 0 | K81: =I81-J81 -> 0 | N81: 0 | O81: 0 | P81: 0
N82: 1 | O82: 0 | P82: 0
C83: نفقات النشاط التربوي الإستثنائي (هذا الباب خاص للتكفل بإطعام وايواء التلاميذ الصحراويين) | N83: 1 | O83: 0 | P83: 0
C84: 4 | D84: 1 | E84: =النفقات!E128 -> الإطعام | I84: =النفقات!J128 -> 0 | K84: =I84-J84 -> 0 | N84: 0 | O84: 0 | P84: 0
D85: 2 | E85: =النفقات!E129 -> مصاريف الإقامة و التمدرس | I85: =النفقات!J129 -> 0 | K85: =I85-J85 -> 0 | N85: 0 | O85: 0 | P85: 0
N86: 0
C87: المجموع: | I87: =O87 -> 9583872 | J87: =P87 -> 4707215.9 | K87: =I87-J87 -> 4876656.1 | N87: =IF(I87<>0,1,0) -> 1 | O87: =SUM(O7:O85) -> 9583872 | P87: =SUM(P7:P85) -> 4707215.9

Sheet التقرير
D1: المعطيات | E1: الايرادات | G1: النفقات | H1: للطباعة
B2: الجمهورية الجزائرية الديمقراطية الشعبية
B3: مديرية التربية لولاية باتنة
B4: =معطيات!D5 -> متوسطة شا فع العربي الكريمية | G4: =معطيات!K7 -> الكريمية | I4: في: | J4: =معطيات!K11 -> 2018-02-26
B5: رقم الهاتف : | C5: =معطيات!K3 -> 027708500 | G5: من
B6: رقــــــــــــــــــم الارســال : /.............../ | E6: =معطيات!K9 -> 2018 | G6: مدير | H6: =B4 -> متوسطة شا فع العربي الكريمية
G7: الى
G8: السيد : مدير التربية لولاية | J8: =معطيات!D3 -> الشلف
G9: مصلحة المالية والوسائل
G10: مكتب مراقبة التسيير المالي للمؤسسات
B11: الموضوع : | C11: تقرير رئيس المؤســـــسة حول ميزانية التسيير لسنة | H11: =معطيات!K9 -> 2018
B12: المرجع : | C12: مراسلة السيد مدير التربية رقم : 2017/2.4/210 بتاريخ 2017/03/08
C14: بناء على المرجع المذكور أعلاه المتعلق بتوزيع مبالغ الاعتمادات المالية لميزانية التسيير لسنة | J14: =E6 -> 2018
B15: ونظرا لاجتماع مجلس التربية والتسيير لدراسة الميزانية
B16: حصرنا موازنة التقديرات كالآتي :
B17: الايرادات | G17: النفقات
G18: الفرع الأول : نفقات التسيير
B19: الباب | D19: المبلغ | G19: الباب | H19: المبلغ
B20: -1 | D20: =الايرادات!J8 -> 9456192 | G20: -1 | H20: ='2'!J11 -> 20000
B21: -2 | C21: -2 | D21: =الايرادات!J23 -> 0 | G21: -2 | H21: ='2'!J13 -> 450000
B22: -3 | C22: -3 | D22: =الايرادات!J38 -> 0 | G22: -3 | H22: ='2'!J15 -> 75000
B23: -4 | C23: -4 | D23: =الايرادات!J44 -> 46933 | G23: -4 | H23: ='2'!J17 -> 59000
B24: -5 | C24: -5 | D24: =الايرادات!J63 -> 0 | G24: -5 | H24: ='2'!J19 -> 156000
B25: -6 | C25: -6 | D25: =الايرادات!J73 -> 6700 | G25: -6 | H25: ='2'!J21 -> 8384800
B26: -7 | C26: -7 | D26: =الايرادات!J79 -> 70800 | G26: -7 | H26: ='2'!J23 -> 17000
B27: -8 | C27: -8 | D27: =الايرادات!J87 -> 0 | G27: -8 | H27: ='2'!J25 -> 0
B28: -9 | C28: -9 | D28: =الايرادات!J93 -> 0 | G28: -9 | H28: ='2'!J27 -> 12375
B29: -10 | C29: -10 | D29: =الايرادات!J99 -> 0 | G29: -10 | H29: ='2'!J29 -> 0
B30: -11 | C30: -11 | D30: =الايرادات!J105 -> 0 | G30: -11 | H30: ='2'!J31 -> 148000
B31: -12 | C31: -12 | D31: =الايرادات!J112 -> 12375 | G31: -12 | H31: ='2'!J33 -> 50600
B32: المجموع: | D32: =SUM(D20:E31) -> 9593000 | G32: -13 | H32: ='2'!J35 -> 98100
G33: -14 | H33: ='2'!J37 -> 112997
B34: فائض الايرادات | G34: -15 | H34: ='2'!J39 -> 0
B35: قدر فائض الايرادات بــ : | G35: المجموع: | H35: =SUM(H20:I34) -> 9583872
B36: ='13'!H33 -> 9128 | G36: الفرع الثاني : نفقات تسيير أقسام رياضة ودراسة
B37: ;ويمثل فارق المنح الوطنية | G37: -1 | H37: ='3'!J11 -> 0
G38: الفرع الثالث :نفقات ذات طابع خاص
G39: -1 | H39: ='3'!J19 -> 0
G40: -2 | H40: ='3'!J21 -> 0
G41: -3 | H41: ='3'!J23 -> 0
G42: -4 | H42: ='3'!J25 -> 0
G43: المجموع: | H43: =SUM(H39:I42) -> 0
G44: المجموع الاجمالي: | H44: =H43+H37+H35 -> 9583872
G46: رئيس المؤسسة

Sheet توضيح (hidden)
I2: المعطيات
C4: توضيح
C6: الايرادات | E6: النفقات | S6: الســــــــــــــــؤال
C7: الباب | D7: التعيين | E7: الفرع | F7: الباب | R7: المـــــــــــــــــادة
C8: 1 | D8: إعانة التسيير للتغذية | E8: 1 | F8: 6 | R8: 1
D9: إعانة التسيير للمصالح المشتركة | E9: 1 | F9: 1 | G9: 2 | H9: 3 | I9: 4 | J9: 5 | K9: 7 | L9: 8 | M9: 10 | N9: 12 | O9: 13 | P9: 14 | Q9: 15 | R9: كل مواد الابواب المذكورة
D10: إعانات التسيير الإضافية المختلفة | E10: حسب تخصيصها
D11: إعانات تسيير أقسام رياضة ودراسة | E11: 2 | F11: 1 | R11: 1 | S11: كيف تفصل فواتير التغذية ؟
D12: المنح (منح النظامين الداخلي ونصف الداخلي) | E12: 1 | F12: 6 | R12: 1
D13: منح التجهيز | E13: 3 | F13: 2 | R13: 1
D14: دعم الدولة للتلاميذ الممنوحين | E14: 1 | F14: 6 | R14: 1
D15: إعانات تسيير وحدة الكشف والمتابعة | E15: 1 | F15: 11 | R15: 1
D16: إعانات النشاط الثقافي والرياضي | E16: 1 | F16: 13 | R16: كل مواد الباب
D17: إعانات دعم المكتبات المدرسية | E17: 1 | F17: 12 | R17: 1
C18: 2 | D18: إعانات الإصلاحات الكبرى | E18: 1 | F18: 14 | R18: 1
D19: إعانات المؤسسات والهيئات العمومية | E19: حسب تخصيصها
D20: إعانات تنظيم مراكز التجميع والتصحيح للامتحانات المدرسية السنوية | E20: ؟ | F20: ؟ | G20: ؟ | H20: ؟ | I20: ؟ | J20: ؟ | K20: ؟ | L20: ؟ | M20: ؟ | N20: ؟ | O20: ؟ | P20: ؟ | Q20: ؟ | R20: ؟ | S20: من أي باب ومادة تصرف؟
D21: إعانات إخرى على عاتق الولاية | E21: حسب تخصيصها
C22: 3 | D22: الهبات والوصايا | E22: حسب تخصيصها وبناء على خصوصية كل مؤسسة وقرار مجلس التوجية والتسيير او التربية والتسيير
C23: 4 | D23: عائدات الايجار | E23: 1 | F23: 1 | G23: 2 | H23: 3 | I23: 4 | J23: 5 | K23: 7 | L23: 8 | M23: 10 | N23: 12 | O23: 13 | P23: 14 | Q23: 15 | R23: كل مواد الابواب المذكورة
D24: ايرادات الأعباء الملحقة (كهرباء - غاز - ماء ) | E24: 1 | F24: 1 | G24: 2 | H24: 3 | I24: 4 | J24: 5 | K24: 7 | L24: 8 | M24: 10 | N24: 12 | O24: 13 | P24: 14 | Q24: 15 | R24: كل مواد الابواب المذكورة
D25: مستحقات المبيت | E25: 1 | F25: 1 | G25: 2 | H25: 3 | I25: 4 | J25: 5 | K25: 7 | L25: 8 | M25: 10 | N25: 12 | O25: 13 | P25: 14 | Q25: 15 | R25: كل مواد الابواب المذكورة
D26: ايرادات بيع بقايا الخبز والشحوم والخردوات | E26: 1 | F26: 1 | G26: 2 | H26: 3 | I26: 4 | J26: 5 | K26: 7 | L26: 8 | M26: 10 | N26: 12 | O26: 13 | P26: 14 | Q26: 15 | R26: كل مواد الابواب المذكورة
D27: الإتلافات | E27: 1 | F27: 1 | G27: 2 | H27: 3 | I27: 4 | J27: 5 | K27: 7 | L27: 8 | M27: 10 | N27: 12 | O27: 13 | P27: 14 | Q27: 15 | R27: كل مواد الابواب المذكورة
D28: الايرادات الناتجة عن عملية الإسقاط | E28: 1 | F28: 1 | G28: 2 | H28: 3 | I28: 4 | J28: 5 | K28: 7 | L28: 8 | M28: 10 | N28: 12 | O28: 13 | P28: 14 | Q28: 15 | R28: كل مواد الابواب المذكورة
D29: ايرادات بيع أشياء مصنوعة ومنتوج الحدائق | E29: 1 | F29: 1 | G29: 2 | H29: 3 | I29: 4 | J29: 5 | K29: 7 | L29: 8 | M29: 10 | N29: 12 | O29: 13 | P29: 14 | Q29: 15 | R29: كل مواد الابواب المذكورة
D30: ايرادات بيع الكتاب المدرسي | E30: 3 | F30: 3 | R30: 2
D31: ايرادات شبه المدرسية (الدفتر الصحي ، دفتر المراسلة ، أوراق الامتحانات ) | E31: 3 | F31: 3 | R31: 2
D32: كل ايراد آخر مرتبط بالنشاط العادي للمؤسسة | E32: 1 | F32: 1 | G32: 2 | H32: 3 | I32: 4 | J32: 5 | K32: 7 | L32: 8 | M32: 10 | N32: 12 | O32: 13 | P32: 14 | Q32: 15 | R32: كل مواد الابواب المذكورة
C33: 5 | D33: تحصيل الدفع غير المستحق
D34: تعويضات التأمينات وتعويضات أخرى | E34: يمكن أن يوزع على أبواب التسيير عند التعديل
D35: الباقي للتحصيل للسنوات السابقة
D36: تصفية الحسابات خارج الميزانية
D37: تعويض العجز في الميزانية
C38: 6 | D38: حقوق التسجيل (مصاريف المراسلة) | E38: 1 | F38: 1 | G38: 2 | H38: 3 | I38: 4 | J38: 5 | K38: 7 | L38: 8 | M38: 10 | N38: 12 | O38: 13 | P38: 14 | Q38: 15 | R38: كل مواد الابواب المذكورة
C39: 7 | D39: مساهمة عائلات التلاميذ غير الممنوحين في التغذية | E39: 1 | F39: 6 | R39: 1
D40: ايرادات ناتجة عن إطعام مستخدمي التربية (الطاولة المشتركة / الملتقيات ) | E40: 1 | F40: 6 | R40: 2 | S40: كيف تفصل الفواتير ؟
D41: ايرادات ناتجة عن إطعام المدعوين وآخرون | E41: 1 | F41: 6 | R41: 3 | S41: تصلح في حالة عدم وجود التلاميذ يومها
C42: 8 | D42: إعتمادات المنحة المدرسية الخاصة لفائدة التلاميذ المعوزيتن | E42: 3 | F42: 1 | R42: 1
C43: 9 | D43: الاعتمادات المخصصة لتغطية تكاليف مجانية الكتاب المدرسي | E43: 3 | F43: 3 | R43: 1
C44: 10 | D44: الاعتمادات الخاصة بالتلاميذ الصحراويين | E44: 3 | F44: 4 | R44: كل مواد الباب
C45: 11 | D45: تغطية العمليات التكوينية ونفقات الامتحانات والمسابقات المهنية | E45: 1 | F45: 9 | R45: 3/2/1
C46: 12 | D46: التكوين أثناء الخدمة لمعلمي الإبتدائي | E46: 1 | F46: 9 | R46: 4

Sheet الخلاصة (hidden)
E2: المعطيات
C3: توزيع مجمل الايرادات على مختلف الأبواب | P3: المعطيات
C6: الايرادات | F6: النفقات | L6: الفرق
C7: الباب | D7: التعيين | E7: مبلغ الايراد | F7: الفرع | G7: الباب | J7: التعيين | K7: مبلغ النفقة
C8: 1 | D8: إعانات التسيير الممنوحة من طرف الدولة | E8: =الايرادات!J8 -> 9456192 | F8: 1 | G8: 1 | J8: تسديد المصاريف | K8: =النفقات!J8 -> 20000 | L8: =L27 -> -115305 | Q8: =#REF! -> 
G9: 2 | J9: التكاليف الملحقة | K9: =النفقات!J13 -> 450000 | Q9: =#REF! -> 
G10: 3 | J10: للوازم | K10: =النفقات!J22 -> 75000 | Q10: =#REF! -> 
G11: 4 | J11: الأدوات والأثاث | K11: =النفقات!J31 -> 59000 | Q11: =#REF! -> 
G12: 5 | J12: اللوازم البيداغوجية | K12: =النفقات!J39 -> 156000 | Q12: =#REF! -> 
G13: 6 | J13: الإطعام | K13: ='9'!M38 -> 8384800
H14: =الايرادات!J11 -> 7068600 | I14: =معطيات!J49 -> 0 | J14: اعانة الدولة
H15: =الايرادات!J15 -> 456192 | I15: =معطيات!J51 -> 456192 | J15: المنح المدرسية
H16: =الايرادات!J17 -> 798336 | I16: =معطيات!J53 -> 798336 | J16: مساهمة الدولة
G17: 7 | J17: الألبسة | K17: =النفقات!J59 -> 17000 | Q17: =#REF! -> 
G18: 8 | J18: التأمين | Q18: =#REF! -> 
G19: 10 | J19: حظيرة السيارات | Q19: =#REF! -> 
G20: 11 | J20: نفقات تسيير وحدة الكشف والمتابعة (UDS) | K20: =النفقات!J85 -> 148000
G21: 12 | J21: المكتبة المدرسية | K21: =النفقات!J89 -> 50600 | Q21: =#REF! -> 
G22: 13 | J22: النفقات المتعلقة بالنشاط الثقافي والرياضي | K22: =النفقات!J96+النفقات!J97 -> 98100 | Q22: =#REF! -> 
G23: 14 | J23: صيانة وتصليح المباني البيداغوجية والإدارية | K23: =النفقات!J100 -> 112997
G24: 15 | J24: المصاريف القضائية والتعويضات المستحقة على عاتق الدولة | Q24: =#REF! -> 
F25: 2 | G25: 1 | J25: نفقات تسيير أقسام رياضة ودراسة | K25: ='3'!J9 -> 0 | Q25: =#REF! -> 
F26: 3 | G26: 2 | J26: المنح المدرسية | K26: ='3'!J21 -> 0 | Q26: =#REF! -> 
C27: المجموع | E27: =E8 -> 9456192 | F27: المجموع | K27: =SUM(K8:K26) -> 9571497 | L27: =E27-K27 -> -115305
C28: 2 | D28: الإعانات الممنوحة من الجماعات المحلية والمؤسسات والهيئات العمومية | E28: =الايرادات!J23 -> 0 | F28: 1 | G28: 14 | J28: صيانة وتصليح المباني البيداغوجية والإدارية | K28: 0 | L28: =L30 -> 0 | Q28: =#REF! -> 
F29: حسب التخصيص | Q29: =#REF! -> 
C30: المجموع | E30: =E28 -> 0 | F30: المجموع | K30: =K28+K29 -> 0 | L30: =E30-K30 -> 0
C31: 3 | D31: الهبات والوصايا | E31: =الايرادات!J38 -> 0 | F31: حسب التخصيص وخصوصية كل مؤسسة وبعد قرار مجلس التربية والتسيير | K31: =E31 -> 0 | L31: =E31-K31 -> 0 | Q31: =#REF! -> 
C32: 4 | D32: إيرادات مرتبطة بنشاط المؤسسة | E32: =الايرادات!J44 -> 46933 | F32: 1 | G32: 1 | J32: تسديد المصاريف | K32: ='2'!J11-K8 -> 0 | L32: =L45 -> 46933 | Q32: =#REF! -> 
G33: 2 | J33: التكاليف الملحقة | Q33: =#REF! -> 
G34: 3 | J34: للوازم | K34: ='2'!J15-K10 -> 0
G35: 4 | J35: الأدوات والأثاث | K35: ='2'!J17-K11 -> 0 | Q35: =#REF! -> 
G36: 5 | J36: اللوازم البيداغوجية | K36: ='2'!J19-K12 -> 0 | Q36: =#REF! -> 
G37: 7 | J37: الألبسة | K37: ='2'!J23-K17 -> 0
G38: 8 | J38: التأمين | K38: ='2'!J25-K18 -> 0 | Q38: =#REF! -> 
G39: 10 | J39: حظيرة السيارات | K39: ='2'!J29-K19 -> 0 | Q39: =#REF! -> 
G40: 12 | J40: المكتبة المدرسية | Q40: =#REF! -> 
G41: 13 | J41: النفقات المتعلقة بالنشاط الثقافي والرياضي | K41: 0
G42: 14 | J42: صيانة وتصليح المباني البيداغوجية والإدارية | K42: ='2'!J37-الايرادات!J23-K23 -> 0
G43: 15 | J43: المصاريف القضائية والتعويضات المستحقة على عاتق الدولة | K43: 0
F44: 3 | G44: 3 | J44: نفقات الكتاب المدرسي / المادة 02 | K44: ='12'!M40 -> 0 | Q44: =#REF! -> 
C45: المجموع | E45: =E32 -> 46933 | F45: المجموع | K45: =SUM(K32:K44) -> 0 | L45: =E45-K45 -> 46933
C46: 5 | D46: إيرادات مختلفة | E46: =الايرادات!J63 -> 0 | F46: لا توزع إلا بترخيص لإدراج فائض الايرادات | L46: =E46-K46 -> 0 | Q46: =#REF! -> 
C47: 6 | D47: إيرادات ناتجة عن تسديد حقوق التسجيل | E47: =الايرادات!J73 -> 6700 | F47: 1 | G47: 1 | J47: تسديد المصاريف | K47: ='2'!J11-K8-K32 -> 0 | Q47: =#REF! -> 
G48: 2 | J48: التكاليف الملحقة | K48: ='2'!J13-K9-K33 -> 0 | Q48: =#REF! -> 
G49: 3 | J49: للوازم | K49: ='2'!J15-K10-K34 -> 0 | Q49: =#REF! -> 
G50: 4 | J50: الأدوات والأثاث | K50: ='2'!J17-K11-K35 -> 0 | Q50: =#REF! -> 
G51: 5 | J51: اللوازم البيداغوجية | K51: ='2'!J19-K12-K36 -> 0 | Q51: =#REF! -> 
G52: 7 | J52: الألبسة | K52: ='2'!J23-K17-K37 -> 0 | Q52: =#REF! -> 
G53: 8 | J53: التأمين | K53: ='2'!J25-K18-K38 -> 0 | Q53: =#REF! -> 
G54: 10 | J54: حظيرة السيارات | K54: ='2'!J29-K19-K39 -> 0 | Q54: =#REF! -> 
G55: 12 | J55: المكتبة المدرسية | K55: 0 | Q55: =#REF! -> 
G56: 13 | J56: النفقات المتعلقة بالنشاط الثقافي والرياضي | K56: 0 | Q56: =#REF! -> 
G57: 14 | J57: صيانة وتصليح المباني البيداغوجية والإدارية | K57: 0
G58: 15 | J58: المصاريف القضائية والتعويضات المستحقة على عاتق الدولة | K58: 0 | Q58: =#REF! -> 
C59: المجموع | E59: =E47 -> 6700 | F59: المجموع | K59: =SUM(K47:K58) -> 0 | L59: =E59-K59 -> 6700
C60: 7 | D60: إيرادات الإطعام | E60: =الايرادات!J79 -> 70800 | F60: 1 | G60: 6 | J60: الإطعام | L60: =E60-K60 -> 70800 | Q60: =#REF! -> 
C61: 8 | D61: المنحة المدرسية الخاصة لفائدة التلاميذ المعوزيتن | E61: =الايرادات!J87 -> 0 | F61: 3 | G61: 1 | J61: منحة التمدرس الخاصة لفائدة التلاميذ المعوزين | K61: 0 | L61: =E61-K61 -> 0 | Q61: =#REF! -> 
C62: 9 | D62: مساهمة الدولة في مجانية الكتاب المدرسي لفائدة التلاميذ المعوزين | E62: =الايرادات!J93 -> 0 | F62: 3 | G62: 3 | J62: تعويض النفقات المرتبطة بمجانية الكتاب المدرسي | K62: ='12'!M38 -> 0 | L62: 0 | Q62: =#REF! -> 
C63: 10 | D63: ايرادات واردة من الباب 42-12 المادة 01 - التلاميذ الصحراويين - | E63: =الايرادات!J99 -> 0 | F63: 3 | G63: 4 | J63: نفقات النشاط التربوي الاستثنائي | K63: ='12'!M49 -> 0 | L63: 0 | Q63: =#REF! -> 
C64: 11 | D64: ايرادات واردة من الباب 43-03 تغطية العمليات التكوينية ونفقات الامتحانات والمسابقات المهنية | E64: =الايرادات!J105+الايرادات!J112 -> 12375 | F64: 1 | G64: 9 | J64: نفقات التكوين | K64: ='9'!M59 -> 12375 | L64: =E64-K64 -> 0 | Q64: =#REF! -> 
C65: 12 | D65: ايرادات واردة من الباب 43-60 التكوين أثناء الخدمة لمعلمي الإبتدائي | F65: 1 | G65: 9 | J65: نفقات التكوين | Q65: =#REF! -> 
J66: =النفقات!C133 -> 9583872 | K66: =K27+K31+K45+K46+K59+K60+K61+K62+K63+K64 -> 9583872 | L66: =J66-K66 -> 0
E67: =E27+E31+E45+E46+E59+E60+E61+E62+E63+E64 -> 9593000 | J67: فائض الايرادات: | K67: =L64+L63+L62+L61+L60+L59+L47+L46+L32+L28+L8 -> 9128
I68: ='13'!H33 -> 9128 | J68: =K67-I68 -> 0

Sheet فائض الايرادات (hidden)
C2: فائض الايرادات المسجل | I2: المعطيات
C5: الباب | D5: التعيين | E5: الايرادات | F5: النفقات | G5: فائض الايرادات
C6: 1 | D6: إعانات التسيير الممنوحة من طرف الدولة | E6: =الايرادات!J8 -> 9456192 | F6: =الخلاصة!K27 -> 9571497 | G6: =E6-F6 -> -115305 | J6: =#REF! -> 
C7: 2 | D7: الإعانات الممنوحة من الجماعات المحلية والمؤسسات والهيئات العمومية | E7: =الايرادات!J23 -> 0 | F7: =SUM(الخلاصة!K28:K29) -> 0 | G7: =E7-F7 -> 0 | J7: =#REF! -> 
C8: 3 | D8: الهبات والوصايا | E8: =الايرادات!J38 -> 0 | F8: =الخلاصة!K31 -> 0 | G8: =E8-F8 -> 0 | J8: =#REF! -> 
C9: 4 | D9: إيرادات مرتبطة بنشاط المؤسسة | E9: =الايرادات!J44 -> 46933 | F9: =SUM(الخلاصة!K32:K44) -> 0 | G9: 46933 | J9: =#REF! -> 
C10: 5 | D10: إيرادات مختلفة | E10: =الايرادات!J63 -> 0 | F10: =SUM(الخلاصة!K46) -> 0 | G10: 0 | J10: =#REF! -> 
C11: 6 | D11: إيرادات ناتجة عن تسديد حقوق التسجيل | E11: =الايرادات!J73 -> 6700 | F11: =SUM(الخلاصة!K47:K58) -> 0 | G11: 6700 | J11: =#REF! -> 
C12: 7 | D12: إيرادات الإطعام | E12: =الايرادات!J79 -> 70800 | F12: =SUM(الخلاصة!K60) -> 0 | G12: 70800 | J12: =#REF! -> 
C13: 8 | D13: المنحة المدرسية الخاصة لفائدة التلاميذ المعوزيتن | E13: =الايرادات!J87 -> 0 | F13: =الخلاصة!K61 -> 0 | G13: 0 | J13: =#REF! -> 
C14: 9 | D14: مساهمة الدولة في مجانية الكتاب المدرسي لفائدة التلاميذ المعوزين | E14: =الايرادات!J93 -> 0 | F14: =الخلاصة!K62 -> 0 | G14: 0 | J14: =#REF! -> 
C15: 10 | D15: ايرادات واردة من الباب 42-12 المادة 01 - التلاميذ الصحراويين - | E15: =الايرادات!J99 -> 0 | F15: =الخلاصة!K63 -> 0 | G15: 0 | J15: =#REF! -> 
C16: 11 | D16: ايرادات واردة من الباب 43-03 تغطية العمليات التكوينية ونفقات الامتحانات والمسابقات المهنية | E16: =الايرادات!J105+الايرادات!J112 -> 12375 | F16: =الخلاصة!K64 -> 12375 | G16: =E16-F16 -> 0 | J16: =#REF! -> 
C17: 12 | D17: ايرادات واردة من الباب 43-60 التكوين أثناء الخدمة لمعلمي الإبتدائي | J17: =#REF! -> 
C18: المجموع : | E18: =SUM(E6:E17) -> 9593000 | F18: =SUM(F6:F17) -> 9583872 | G18: =SUM(G6:G17) -> 9128
H20: =F20-G20 -> 0
